Workbook

Sheet Wybór języka

Sheet PL
A1: P&L (Asseco Poland S.A.) | B1: P&L (Asseco Poland S.A.) | C1: YE 2017 | D1: Q1 2018 | E1: Q2 2018 | F1: Q3 2018 | G1: Q4 2018 | H1: Q1 2019 | I1: Q2 2019 | J1: Q3 2019 | K1: Q4 2019 | L1: Q1 2020 | M1: Q2 2020 | N1: Q3 2020 | O1: Q4 2020 | P1: Q1 2021 | Q1: Q2 2021 | R1: Q3 2021 | S1: Q4 2021 | T1: Q1 2022 | U1: Q2 2022 | V1: Q3 2022 | W1: Q4 2022 | X1: Q1 2023 | Y1: Q2 2023 | Z1: Q3 2023 | AA1: Q4 2023
C3: mln PLN | D3: mln PLN | E3: mln PLN | F3: mln PLN | G3: mln PLN | H3: mln PLN | I3: mln PLN | J3: mln PLN | K3: mln PLN | L3: mln PLN | M3: mln PLN | N3: mln PLN | O3: mln PLN | P3: mln PLN | Q3: mln PLN | R3: mln PLN | S3: mln PLN | T3: mln PLN | U3: mln PLN | V3: mln PLN | W3: mln PLN | X3: mln PLN | Y3: mln PLN | Z3: mln PLN | AA3: mln PLN
A5: Przychody ze sprzedaży | B5: Sales revenues | C5: 861.2 | D5: 205.4 | E5: 225.4 | F5: 211 | G5: 251.5 | H5: 195.1 | I5: 210 | J5: 191.7 | K5: 208.7 | L5: 206.6 | M5: 229.1 | N5: 261.3 | O5: 309.9 | P5: 261.6 | Q5: 268.1 | R5: 263.6 | S5: 305.7 | T5: ='[3]P&L_OCI'!$D$8 -> 279.8 | U5: ='[4]P&L_OCI'!$C8 -> 293.5 | V5: ='[5]P&L_OCI'!$C$8 -> 303.1 | W5: ='[6]P&L_OCI'!$C$8 -> 326.4 | X5: ='[7]P&L_OCI'!$D$8 -> 317.5 | Y5: ='[8]P&L_OCI'!C8 -> 367 | Z5: ='[9]P&L_OCI'!C8 -> 322.5 | AA5: ='[10]P&L_OCI'!$C$8 -> 373.1
A6: Koszt własny sprzedaży | B6: Cost of sales | C6: -603.6 | D6: -130.3 | E6: -149.9 | F6: -134.4 | G6: -170.6 | H6: -135.6 | I6: -146.3 | J6: -133.8 | K6: -156.1 | L6: -144.9 | M6: -162.6 | N6: -187 | O6: -226.4 | P6: -182.1 | Q6: -179.1 | R6: -175.6 | S6: -232.2 | T6: ='[3]P&L_OCI'!$D$9 -> -197.7 | U6: ='[4]P&L_OCI'!$C9 -> -205.4 | V6: ='[5]P&L_OCI'!$C$9 -> -217.9 | W6: ='[6]P&L_OCI'!$C$9 -> -242.7 | X6: ='[7]P&L_OCI'!$D$9 -> -231.1 | Y6: ='[8]P&L_OCI'!C9 -> -265.5 | Z6: ='[9]P&L_OCI'!C9 -> -241.2 | AA6: ='[10]P&L_OCI'!$C$9 -> -304.8
A8: Zysk brutto ze sprzedaży | B8: Gross profit on sales | C8: =SUM(C5:C6) -> 257.6 | D8: =SUM(D5:D6) -> 75.1 | E8: =SUM(E5:E6) -> 75.5 | F8: =SUM(F5:F6) -> 76.6 | G8: =SUM(G5:G6) -> 80.9 | H8: =SUM(H5:H6) -> 59.5 | I8: =SUM(I5:I6) -> 63.7 | J8: 57.9 | K8: 52.6 | L8: 61.7 | M8: 66.5 | N8: 74.3 | O8: 83.5 | P8: 79.5 | Q8: 89 | R8: 88 | S8: 73.5 | T8: =SUM(T5:T6) -> 82.1 | U8: 88.1 | V8: =SUM(V5:V6) -> 85.2 | W8: 83.7 | X8: =SUM(X5:X6) -> 86.4 | Y8: 101.5 | Z8: =SUM(Z5:Z6) -> 81.3 | AA8: 68.3
A10: Koszty sprzedaży | B10: Selling costs | C10: -50.8 | D10: -10.8 | E10: -11.4 | F10: -10.7 | G10: -13.5 | H10: -10.9 | I10: -10.5 | J10: -10.7 | K10: -14.2 | L10: -9.8 | M10: -10.8 | N10: -9.6 | O10: -10.8 | P10: -11.6 | Q10: -9.5 | R10: -11 | S10: -16.1 | T10: ='[3]P&L_OCI'!$D$11 -> -12 | U10: ='[4]P&L_OCI'!$C$11 -> -13.2 | V10: ='[5]P&L_OCI'!$C$11 -> -13 | W10: ='[6]P&L_OCI'!$C$11 -> -15.1 | X10: ='[7]P&L_OCI'!$D$11 -> -12.5 | Y10: ='[8]P&L_OCI'!$C$11 -> -12 | Z10: ='[9]P&L_OCI'!$C$11 -> -14.7 | AA10: ='[10]P&L_OCI'!$C$11 -> -15.6
A11: Koszty ogólnego zarządu | B11: General administrative expenses | C11: -87.2 | D11: -18.5 | E11: -21 | F11: -18.9 | G11: -23.6 | H11: -18.9 | I11: -21.4 | J11: -19.8 | K11: -18.9 | L11: -20.9 | M11: -21.7 | N11: -21.7 | O11: -23.3 | P11: -23.4 | Q11: -23.2 | R11: -21 | S11: -30.3 | T11: ='[3]P&L_OCI'!$D$12 -> -22.8 | U11: ='[4]P&L_OCI'!$C$12 -> -24.4 | V11: ='[5]P&L_OCI'!$C$12 -> -23.2 | W11: ='[6]P&L_OCI'!$C$12 -> -25.4 | X11: ='[7]P&L_OCI'!$D$12 -> -24.7 | Y11: ='[8]P&L_OCI'!$C$12 -> -29.2 | Z11: ='[9]P&L_OCI'!$C$12 -> -24.9 | AA11: ='[10]P&L_OCI'!$C$12 -> -18
A13: Zysk netto ze sprzedaży | B13: Net profit on sales | C13: =SUM(C8,C10:C11) -> 119.6 | D13: =SUM(D8,D10:D11) -> 45.8 | E13: =SUM(E8,E10:E11) -> 43.1 | F13: =SUM(F8,F10:F11) -> 47 | G13: =SUM(G8,G10:G11) -> 43.8 | H13: =SUM(H8,H10:H11) -> 29.7 | I13: =SUM(I8,I10:I11) -> 31.8 | J13: 27.4 | K13: 19.5 | L13: 31 | M13: 34 | N13: 43 | O13: 49.4 | P13: 44.5 | Q13: 56.3 | R13: 56 | S13: 27.1 | T13: =SUM(T8,T10:T11) -> 47.3 | U13: 50.5 | V13: =SUM(V8,V10:V11) -> 49 | W13: 43.2 | X13: =SUM(X8,X10:X11) -> 49.2 | Y13: 60.3 | Z13: =SUM(Z8,Z10:Z11) -> 41.7 | AA13: 34.7
A15: Pozostałe przychody operacyjne | B15: Other operating income | C15: 5.5 | D15: 0.8 | E15: 0.8 | F15: 0.8 | G15: 1 | H15: 0.2 | I15: 0.3 | J15: 0.7 | K15: 2.7 | L15: 1.1 | M15: 0.4 | N15: 1 | O15: 0.1 | P15: 1.9 | Q15: 1 | R15: 0.8 | S15: 2.4 | T15: ='[3]P&L_OCI'!$D$14 -> 0.5 | U15: ='[4]P&L_OCI'!$C$14 -> 0.5 | V15: ='[5]P&L_OCI'!$C$14 -> 2.7 | W15: ='[6]P&L_OCI'!$C$14 -> 2.4 | X15: ='[7]P&L_OCI'!$D$14 -> 1.2 | Y15: ='[8]P&L_OCI'!$C$14 -> 0.7 | Z15: ='[9]P&L_OCI'!$C$14 -> 0.9 | AA15: ='[10]P&L_OCI'!$C$14 -> 0.4
A16: Pozostałe koszty operacyjne | B16: Other operating expenses | C16: -4.5 | D16: -0.2 | E16: -0.8 | F16: -0.2 | G16: -0.2 | H16: -0.8 | I16: -0.2 | J16: 0 | K16: -2 | L16: -0.8 | M16: -0.3 | N16: 0 | O16: -0.8 | P16: -0.4 | Q16: -0.2 | R16: -0.9 | S16: -2 | T16: ='[3]P&L_OCI'!$D$15 -> -1.3 | U16: ='[4]P&L_OCI'!$C$15 -> -1.1 | V16: ='[5]P&L_OCI'!$C$15 -> -2.8 | W16: ='[6]P&L_OCI'!$C$15 -> 1.3 | X16: ='[7]P&L_OCI'!$D$15 -> -0.3 | Y16: ='[8]P&L_OCI'!$C$15 -> -0.4 | Z16: ='[9]P&L_OCI'!$C$15 -> -0.2 | AA16: ='[10]P&L_OCI'!$C$15 -> -0.4
A18: Zysk z działalności operacyjnej | B18: Operating profit | C18: =SUM(C13,C15:C16) -> 120.6 | D18: =SUM(D13,D15:D16) -> 46.4 | E18: =SUM(E13,E15:E16) -> 43.1 | F18: =SUM(F13,F15:F16) -> 47.6 | G18: =SUM(G13,G15:G16) -> 44.6 | H18: =SUM(H13,H15:H16) -> 29.1 | I18: =SUM(I13,I15:I16) -> 31.9 | J18: 28.1 | K18: 20.2 | L18: 31.3 | M18: 34.1 | N18: 44 | O18: 48.7 | P18: 46 | Q18: 57.1 | R18: 55.9 | S18: 27.5 | T18: =SUM(T13,T15:T16) -> 46.5 | U18: 49.9 | V18: =SUM(V13,V15:V16) -> 48.9 | W18: 46.9 | X18: =SUM(X13,X15:X16) -> 50.1 | Y18: 60.6 | Z18: =SUM(Z13,Z15:Z16) -> 42.4 | AA18: 34.7
A20: Działalność finansowa | B20: Financial activity | C20: 84.2 | D20: 12 | E20: 7.3 | F20: 3.3 | G20: 6.4 | H20: 80.1 | I20: 21.9 | J20: 6 | K20: 7.5 | L20: 103.2 | M20: 24 | N20: 7.8 | O20: -1.4 | P20: 118.6 | Q20: 49.809 | R20: 8.711 | S20: -2.6 | T20: ='[3]P&L_OCI'!$D$17+'[3]P&L_OCI'!$D$18 -> 115.7 | U20: ='[4]P&L_OCI'!$C$17+'[4]P&L_OCI'!$C$18 -> 61.2 | V20: ='[5]P&L_OCI'!$C$17+'[5]P&L_OCI'!$C$18 -> 6.2 | W20: ='[6]P&L_OCI'!$C$17+'[6]P&L_OCI'!$C$18 -> 9.4 | X20: ='[7]P&L_OCI'!$D$17+'[7]P&L_OCI'!$D$18 -> 123 | Y20: ='[8]P&L_OCI'!$C$17+'[8]P&L_OCI'!$C$18 -> 21.3 | Z20: ='[9]P&L_OCI'!$C$17+'[9]P&L_OCI'!$C$18 -> 70.1 | AA20: ='[10]P&L_OCI'!$C$17+'[10]P&L_OCI'!$C$18 -> -11.2
A22: Zysk brutto | B22: Pre-tax profit | C22: =SUM(C18,C20) -> 204.8 | D22: =SUM(D18,D20) -> 58.4 | E22: =SUM(E18,E20) -> 50.4 | F22: =SUM(F18,F20) -> 50.9 | G22: =SUM(G18,G20) -> 51 | H22: =SUM(H18,H20) -> 109.2 | I22: =SUM(I18,I20) -> 53.8 | J22: 34.1 | K22: 27.7 | L22: 134.5 | M22: 58.1 | N22: 51.8 | O22: 47.3 | P22: 164.6 | Q22: 106.909 | R22: 64.611 | S22: 24.9 | T22: =SUM(T18,T20) -> 162.2 | U22: 111.1 | V22: =SUM(V18,V20) -> 55.1 | W22: 56.3 | X22: =SUM(X18,X20) -> 173.1 | Y22: 81.9 | Z22: =SUM(Z18,Z20) -> 112.5 | AA22: 23.5
A24: Podatek dochodowy | B24: Corporate income tax | C24: -29.2 | D24: -13.1 | E24: -10.3 | F24: -10.7 | G24: -10.1 | H24: -5.8 | I24: -4.8 | J24: -3.5 | K24: -3.9 | L24: -5.6 | M24: -9.4 | N24: -10.6 | O24: -0.5 | P24: -9.5 | Q24: -12.7 | R24: -11.2 | S24: -6.7 | T24: ='[3]P&L_OCI'!$D$20 -> -11.7 | U24: ='[4]P&L_OCI'!$C$20 -> -9 | V24: ='[5]P&L_OCI'!$C$20 -> -8 | W24: ='[6]P&L_OCI'!$C$20 -> -15.4 | X24: ='[7]P&L_OCI'!$D$20 -> -13.4 | Y24: ='[8]P&L_OCI'!$C$20 -> -15.8 | Z24: ='[9]P&L_OCI'!$C$20 -> -2.5 | AA24: ='[10]P&L_OCI'!$C$20 -> -7.3
A26: Zysk netto z działalności kontynuawanej za okres sprawozdawczy | B26: Net profit for the reporting period from continued operations | C26: =SUM(C22,C24) -> 175.6 | D26: =SUM(D22,D24) -> 45.3 | E26: =SUM(E22,E24) -> 40.1 | F26: =SUM(F22,F24) -> 40.2 | G26: =SUM(G22,G24) -> 40.9 | H26: =SUM(H22,H24) -> 103.4 | I26: =SUM(I22,I24) -> 49 | J26: 30.6 | K26: 23.8 | L26: 128.9 | M26: 48.7 | N26: 41.2 | O26: 46.8 | P26: 155.1 | Q26: 94.209 | R26: 53.411 | S26: 18.2 | T26: =SUM(T22,T24) -> 150.5 | U26: 102.1 | V26: =SUM(V22,V24) -> 47.1 | W26: 40.9 | X26: =SUM(X22,X24) -> 159.7 | Y26: 66.1 | Z26: =SUM(Z22,Z24) -> 110 | AA26: 16.2
A28: Zysk netto z działalności zaniechanej za okres sprawozdawczy | B28: Net profit for the reporting period from discontinued operations | C28: 0 | D28: 0 | E28: 0 | F28: 0 | G28: 0 | H28: 0 | I28: 0 | J28: 0 | K28: 0 | L28: 0 | M28: 0 | N28: 0 | O28: 0 | P28: 0 | Q28: 0 | R28: 0 | S28: 0 | T28: 0 | U28: 0 | V28: 0 | W28: 0 | X28: 0 | Y28: 0 | Z28: 0 | AA28: 0
A30: Zysk netto za okres sprawozdawczy | B30: Net profit for the reporting period | C30: =SUM(C26,C28) -> 175.6 | D30: =SUM(D26,D28) -> 45.3 | E30: =SUM(E26,E28) -> 40.1 | F30: =SUM(F26,F28) -> 40.2 | G30: =SUM(G26,G28) -> 40.9 | H30: =SUM(H26,H28) -> 103.4 | I30: =SUM(I26,I28) -> 49 | J30: 30.6 | K30: 23.8 | L30: =SUM(L26,L28) -> 128.9 | M30: 48.7 | N30: 41.2 | O30: 46.8 | P30: 155.1 | Q30: 94.209 | R30: 53.411 | S30: 18.2 | T30: =SUM(T26,T28) -> 150.5 | U30: 102.1 | V30: =SUM(V26,V28) -> 47.1 | W30: 40.9 | X30: =SUM(X26,X28) -> 159.7 | Y30: 66.1 | Z30: =SUM(Z26,Z28) -> 110 | AA30: 16.2
A32: Zysk netto przypadający na jedną akcję (w złotych) z działalności kontynuowanej | B32: Earnings per share (in PLN) from continued operations:
A33: EPS | B33: EPS | C33: 2.12 | D33: 0.55 | E33: 0.48 | F33: 0.48 | G33: 0.5 | H33: 1.25 | I33: 0.59 | J33: 0.37 | K33: 0.28 | L33: 1.55 | M33: 0.59 | N33: 0.5 | O33: 0.56 | P33: =1.87 -> 1.87 | Q33: 1.14 | R33: 0.64 | S33: 0.22 | T33: ='[3]P&L_OCI'!$D$23 -> 1.81 | U33: ='[4]P&L_OCI'!$C$23 -> 1.23 | V33: ='[5]P&L_OCI'!$C$23 -> 0.57 | W33: ='[6]P&L_OCI'!$C$23 -> 0.49 | X33: ='[7]P&L_OCI'!$D$23 -> 1.92 | Y33: ='[8]P&L_OCI'!$C$23 -> 0.8 | Z33: ='[9]P&L_OCI'!$C$23 -> 1.35 | AA33: ='[10]P&L_OCI'!$C$23 -> 0.21
A34: EPS rozwodniony | B34: Diluted EPS | C34: 2.12 | D34: 0.55 | E34: 0.48 | F34: 0.48 | G34: 0.5 | H34: 1.25 | I34: 0.59 | J34: 0.37 | K34: 0.28 | L34: 1.55 | M34: 0.59 | N34: 0.5 | O34: 0.56 | P34: =1.87 -> 1.87 | Q34: 1.14 | R34: =R33 -> 0.64 | S34: =S33 -> 0.22 | T34: 1.81 | U34: 1.23 | V34: =V33 -> 0.57 | W34: 0.49 | X34: =X33 -> 1.92 | Y34: 0.8 | Z34: =Z33 -> 1.35 | AA34: 0.21

Sheet BS
A1: BILANS ASSECO POLAND S.A. | B1: STATEMENT OF FINANCIAL POSITION OF ASSECO POLAND S.A. | C1: YE 2017 | D1: Q1 2018 | E1: Q2 2018 | F1: Q3 2018 | G1: Q4 2018 | H1: Q1 2019 | I1: Q2 2019 | J1: Q3 2019 | K1: Q4 2019 | L1: Q1 2020 | M1: Q2 2020 | N1: Q3 2020 | O1: Q4 2020 | P1: Q1 2021 | Q1: Q2 2021 | R1: Q3 2021 | S1: Q4 2021 | T1: Q1 2022 | U1: Q2 2022 | V1: Q3 2022 | W1: Q4 2022 | X1: Q1 2023 | Y1: Q2 2023 | Z1: Q3 2023 | AA1: Q4 2023
C3: mln PLN | D3: mln PLN | E3: mln PLN | F3: mln PLN | G3: mln PLN | H3: mln PLN | I3: mln PLN | J3: mln PLN | K3: mln PLN | L3: mln PLN | M3: mln PLN | N3: mln PLN | O3: mln PLN | P3: mln PLN | Q3: mln PLN | R3: mln PLN | S3: mln PLN | T3: mln PLN | U3: mln PLN | V3: mln PLN | W3: mln PLN | X3: mln PLN | Y3: mln PLN | Z3: mln PLN | AA3: mln PLN
A7: Aktywa trwałe | B7: Non-current assets
A8: Rzeczowe aktywa trwałe | B8: Property, plant and equipment | C8: 322.1 | D8: 316.7 | E8: 314.9 | F8: 312.2 | G8: 310.2 | H8: 268.1 | I8: 271.2 | J8: 275.1 | K8: 284.6 | L8: 284.4 | M8: 291.7 | N8: 302.5 | O8: 310.5 | P8: 307.5 | Q8: 305.4 | R8: 306.6 | S8: 309.4 | T8: =[3]BS!$C$10 -> 305.4 | U8: =[4]BS!$C10 -> 300.6 | V8: =[5]BS!$C$10 -> 301.1 | W8: =[6]BS!$C$10 -> 289.6 | X8: =[7]BS!$C$10 -> 291.9 | Y8: =[8]BS!$C$10 -> 290.9 | Z8: =[9]BS!$C$10 -> 288.6 | AA8: =[10]BS!$C$10 -> 286.7
A9: Wartości niematerialne | B9: Intangible assets | C9: 2217.1 | D9: 2213.4 | E9: 2210.5 | F9: 2208.5 | G9: 2213.2 | H9: 2218.2 | I9: 2215.3 | J9: 2216.6 | K9: 2216.1 | L9: 2215.6 | M9: 2214.6 | N9: 2218.4 | O9: 2208.8 | P9: 2209.3 | Q9: 2207.5 | R9: 2205.2 | S9: 2205.2 | T9: =[3]BS!$C$11 -> 2206.8 | U9: =[4]BS!$C11 -> 2207.6 | V9: =[5]BS!$C$11 -> 2208.6 | W9: =[6]BS!$C$11 -> 2212 | X9: =[7]BS!$C$11 -> 2214.3 | Y9: =[8]BS!$C$11 -> 2214.1 | Z9: =[9]BS!$C$11 -> 2209.8 | AA9: =[10]BS!$C$11 -> 2203.7
A10: w tym wartość firmy z połączenia | B10: of which goodwill from mergers | C10: 1932.5 | D10: 1932.5 | E10: 1932.5 | F10: 1932.5 | G10: 1932.5 | H10: 1932.5 | I10: 1932.5 | J10: 1932.5 | K10: 1932.5 | L10: 1932.5 | M10: 1932.5 | N10: 1936.9 | O10: 1936.9 | P10: 1936.9 | Q10: 1936.9 | R10: 1936.9 | S10: 1936.9 | T10: =[3]BS!$C$12 -> 1936.9 | U10: =[4]BS!$C12 -> 1936.9 | V10: =[5]BS!$C$12 -> 1936.9 | W10: =[6]BS!$C$12 -> 1936.9 | X10: =[7]BS!$C$12 -> 1936.9 | Y10: =[8]BS!$C$12 -> 1936.9 | Z10: =[9]BS!$C$12 -> 1936.9 | AA10: =[10]BS!$C$12 -> 1936.9
A11: Aktywa z tytułu prawa do użytkowania | B11: Right-to-use assets | C11: 0 | D11: 0 | E11: 0 | F11: 0 | G11: 0 | H11: 99.9 | I11: 95.7 | J11: 90.7 | K11: 87 | L11: 83.6 | M11: 90.1 | N11: 86.3 | O11: 90.2 | P11: 88.9 | Q11: 86.5 | R11: 84.5 | S11: 95.4 | T11: =[3]BS!$C$13 -> 93.7 | U11: =[4]BS!$C13 -> 91.6 | V11: =[5]BS!$C$13 -> 88.9 | W11: =[6]BS!$C$13 -> 86.5 | X11: =[7]BS!$C$13 -> 87.1 | Y11: =[8]BS!$C$13 -> 83.8 | Z11: =[9]BS!$C$13 -> 80.9 | AA11: =[10]BS!$C$13 -> 104.9
A12: Nieruchomości inwestycyjne | B12: Investment property | C12: 0.4 | D12: 0.4 | E12: 0.4 | F12: 0.4 | G12: 0.4 | H12: 0.4 | I12: 0.4 | J12: 0.4 | K12: 0.4 | L12: 0.4 | M12: 0.4 | N12: 0.3 | O12: 0.3 | P12: 0.3 | Q12: 0.3 | R12: 0.3 | S12: 0.3 | T12: =[3]BS!$C$14 -> 0.3 | U12: =[4]BS!$C14 -> 0.3 | V12: =[5]BS!$C$14 -> 0.3 | W12: =[6]BS!$C$14 -> 0.3 | X12: =[7]BS!$C$14 -> 0.3 | Y12: =[8]BS!$C$14 -> 0.3 | Z12: =[9]BS!$C$14 -> 0.3 | AA12: 0
A13: Inw. w jedn. zależnych i stowarzyszonych | B13: Inv. in subsidiaries and associates | C13: 2046.2 | D13: 2052.5 | E13: 2055 | F13: 2056.1 | G13: 2052.1 | H13: 2069.7 | I13: 2073.2 | J13: 2073.9 | K13: 2073.9 | L13: 2081.5 | M13: 2083 | N13: 2069.7 | O13: 2069.2 | P13: 2069.7 | Q13: 2070.8 | R13: 2070.8 | S13: 2084 | T13: =[3]BS!$C$15 -> 2084.2 | U13: =[4]BS!$C15 -> 2084.3 | V13: =[5]BS!$C$15 -> 2078.5 | W13: =[6]BS!$C$15 -> 2073 | X13: =[7]BS!$C$15 -> 2085.1 | Y13: =[8]BS!$C$15 -> 2077.3 | Z13: =[9]BS!$C$15 -> 1988.4 | AA13: =[10]BS!$C$14 -> 1975.1
A14: Należności długoterminowe | B14: Long-term receivables | C14: 87.9 | D14: 88.3 | E14: 85.5 | F14: 81.2 | G14: 82.7 | H14: 82 | I14: 76.9 | J14: 78.9 | K14: 69.6 | L14: 72.5 | M14: 55 | N14: 44.1 | O14: 57 | P14: 58.4 | Q14: 51.3 | R14: 27.6 | S14: 19.3 | T14: =[3]BS!$C$16 -> 18.4 | U14: =[4]BS!$C16 -> 14.9 | V14: =[5]BS!$C$16 -> 11.4 | W14: =[6]BS!$C$16 -> 10.6 | X14: =[7]BS!$C$16 -> 10.4 | Y14: =[8]BS!$C$16 -> 10.9 | Z14: =[9]BS!$C$16 -> 4.7 | AA14: =[10]BS!$C$15 -> 1.8
A15: Długoterm. rozl. międzyokresowe | B15: Long-term prepayments and accr. inc. | C15: 1.8 | D15: 1 | E15: 4.3 | F15: 5.9 | G15: 6 | H15: 5.6 | I15: 4.9 | J15: 9.6 | K15: 14.1 | L15: 13.3 | M15: 12.3 | N15: 15.8 | O15: 40.9 | P15: 38.2 | Q15: 35.2 | R15: 33.2 | S15: 32.8 | T15: =[3]BS!$C$17 -> 34 | U15: =[4]BS!$C$17 -> 32.7 | V15: =[5]BS!$C$17 -> 36.5 | W15: =[6]BS!$C$17 -> 32.4 | X15: =[7]BS!$C$17 -> 33.9 | Y15: =[8]BS!$C$17 -> 35.1 | Z15: =[9]BS!$C$17 -> 39.7 | AA15: =[10]BS!$C$16 -> 37.5
A16: Długoterminowe aktywa finansowe | B16: Long-term financial assets | C16: 37.2 | D16: 37.1 | E16: 13.5 | F16: 14 | G16: 46.4 | H16: 31.4 | I16: 32 | J16: 31.4 | K16: 28.3 | L16: 25.6 | M16: 26 | N16: 26 | O16: 25.9 | P16: 25.5 | Q16: 25.4 | R16: 23.3 | S16: 24.2 | T16: =[3]BS!$C$19 -> 22.1 | U16: =[4]BS!$C$19 -> 14.2 | V16: =[5]BS!$C$19 -> 15.2 | W16: =[6]BS!$C$19 -> 15.5 | X16: =[7]BS!$C$19 -> 16.9 | Y16: =[8]BS!$C$19 -> 17.3 | Z16: =[9]BS!$C$19 -> 17.1 | AA16: =[10]BS!$C$18 -> 15.9
C17: =SUM(C8:C9,C11:C16) -> 4712.7 | D17: 4709.4 | E17: 4684.1 | F17: 4678.3 | G17: 4711 | H17: 4775.3 | I17: 4769.6 | J17: 4776.6 | K17: 4774 | L17: 4776.9 | M17: 4773.1 | N17: 4763.1 | O17: 4802.8 | P17: 4797.8 | Q17: 4782.4 | R17: 4751.5 | S17: 4770.6 | T17: 4764.9 | U17: 4746.2 | V17: 4740.5 | W17: 4719.9 | X17: 4739.9 | Y17: 4729.7 | Z17: 4629.5 | AA17: 4625.6
A18: Aktywa obrotowe | B18: Current assets
A19: Zapasy | B19: Inventories | C19: 2.7 | D19: 2.8 | E19: 4.7 | F19: 4.7 | G19: 2.6 | H19: 4.3 | I19: 2.6 | J19: 3.3 | K19: 8.1 | L19: 9 | M19: 1 | N19: 2.5 | O19: 1.4 | P19: 2.8 | Q19: 2.8 | R19: 3.9 | S19: 2.8 | T19: =[3]BS!$C$22 -> 4.4 | U19: =[4]BS!C22 -> 2.1 | V19: =[5]BS!$C$22 -> 10.8 | W19: =[6]BS!$C$22 -> 10.6 | X19: =[7]BS!$C$22 -> 6.1 | Y19: =[8]BS!$C$22 -> 8.6 | Z19: =[9]BS!$C$22 -> 6.3 | AA19: =[10]BS!$C$21 -> 3.3
A20: Należności z tytułu dostaw i usług | B20: Trade receivables | C20: 393.8 | D20: 373.6 | E20: 187.3 | F20: 160.4 | G20: 173.7 | H20: 138 | I20: 203.1 | J20: 152.8 | K20: 170.9 | L20: 139.9 | M20: 131.8 | N20: 186.2 | O20: 220.6 | P20: 165.8 | Q20: 163.7 | R20: 163.9 | S20: 217.7 | T20: =[3]BS!$C$23 -> 160.6 | U20: =[4]BS!C23 -> 138.5 | V20: =[5]BS!$C$23 -> 161.8 | W20: =[6]BS!$C$23 -> 175 | X20: =[7]BS!$C$23 -> 180.3 | Y20: =[8]BS!$C$23 -> 257.3 | Z20: =[9]BS!$C$23 -> 223.3 | AA20: =[10]BS!$C$22 -> 241.2
A21: Aktywa z tytułu umów z klientami | B21: Contract assets | C21: 0 | D21: 0 | E21: 164.9 | F21: 151.7 | G21: 122.4 | H21: 144.9 | I21: 119.4 | J21: 99.2 | K21: 50.1 | L21: 76.9 | M21: 100.3 | N21: 115.5 | O21: 112 | P21: 128.9 | Q21: 137.5 | R21: 166.9 | S21: 140 | T21: =[3]BS!$C$24 -> 161.6 | U21: =[4]BS!C24 -> 208 | V21: =[5]BS!$C$24 -> 218.6 | W21: =[6]BS!$C$24 -> 228.1 | X21: =[7]BS!$C$24 -> 271.3 | Y21: =[8]BS!$C$24 -> 247.7 | Z21: =[9]BS!$C$24 -> 238.8 | AA21: =[10]BS!$C$23 -> 172.8
A22: Należności z tyt. podatku dochodowego od osób prawnych | B22: Corporate income tax receivable | C22: 29.1 | D22: 28.3 | E22: 0.1 | F22: 0.1 | G22: 0 | H22: 0 | I22: 0.9 | J22: 0.2 | K22: 0 | L22: 0 | M22: 4 | N22: 1.9 | O22: 2.3 | P22: 2.7 | Q22: 0.4 | R22: 0 | S22: 0 | T22: =[3]BS!$C$25 -> 0 | U22: =[4]BS!C25 -> 0 | V22: =[5]BS!$C$25 -> 0 | W22: =[6]BS!$C$25 -> 0 | X22: =[7]BS!$C$25 -> 0 | Y22: =[8]BS!$C$25 -> 0 | Z22: =[9]BS!$C$25 -> 0 | AA22: =[10]BS!$C$24 -> 0
A23: Pozostałe należności | B23: Other receivables | C23: 27.1 | D23: 25.3 | E23: 24.2 | F23: 27.3 | G23: 17.4 | H23: 89.3 | I23: 22.7 | J23: 22.1 | K23: =21.1+1.4 -> 22.5 | L23: 119.6 | M23: 20.1 | N23: 28.4 | O23: 24.1 | P23: 76.1 | Q23: 18.6 | R23: 44.4 | S23: 33.6 | T23: =[3]BS!$C$27 -> 43.6 | U23: =[4]BS!$C$27 -> 57.5 | V23: =[5]BS!$C$27+[5]BS!$C$26 -> 47 | W23: =[6]BS!$C$26+[6]BS!$C$27 -> 19.5 | X23: =[7]BS!$C$26+[7]BS!$C$27 -> 13.8 | Y23: =[8]BS!$C$26+[8]BS!$C$27 -> 9.7 | Z23: =[9]BS!$C$27 -> 54.5 | AA23: =[10]BS!$C$26 -> 21.9
A24: Pozostałe aktywa niefinansowe | B24: Other non-financial assets | C24: 0.9 | D24: 1.8 | E24: 1.6 | F24: 3.8 | G24: 1.6 | H24: 1.8 | I24: 0.9 | J24: 2.7 | K24: 0.9 | L24: 2.2 | M24: 1.6 | N24: 0.9 | O24: 1 | P24: 1.1 | Q24: 1.8 | R24: 1.6 | S24: 1.3 | T24: =[11]D_BS!$C$34/1000 -> 1.863 | U24: =ROUND([12]D_BS!$C$34/1000,1) -> 5.3 | V24: =ROUND([13]D_BS!$C$34/1000,1) -> 2.1 | W24: =ROUND([14]D_BS!$C$34/1000,1) -> 2.4 | X24: =ROUND([15]D_BS!$C$34/1000,1) -> 2.7 | Y24: =ROUND([16]D_BS!$C$34/1000,1) -> 2.7 | Z24: =ROUND([17]D_BS!$C$34/1000,1) -> 3.5 | AA24: =ROUND([18]D_BS!$C$34/1000,1) -> 3.1
A25: Aktywa finansowe | B25: Financial assets | C25: 11.7 | D25: 5.7 | E25: 23.3 | F25: 23.8 | G25: 1.4 | H25: 1.4 | I25: 1.6 | J25: 0.8 | K25: 1.7 | L25: 1 | M25: 1.6 | N25: 1.4 | O25: 1.2 | P25: 0.7 | Q25: 1.3 | R25: 1 | S25: 1.7 | T25: =[3]BS!$C$29-T24 -> 1.237 | U25: =[4]BS!$C$29-U24+0.1 -> 5.5 | V25: =[5]BS!$C$29-V24 -> 0.5 | W25: =[6]BS!$C$29-W24 -> 1.4 | X25: =[7]BS!$C$29-X24 -> 0.8 | Y25: =[8]BS!$C$29-Y24 -> 1.6 | Z25: =[9]BS!$C$29-Z24 -> 1.2 | AA25: =[10]BS!$C$28-AA24 -> 3.1
A26: Rozliczenia międzyokresowe | B26: Prepayments and accrued income | C26: 8.1 | D26: 14.7 | E26: 13.2 | F26: 16 | G26: 16.1 | H26: 24 | I26: 22.1 | J26: 29.3 | K26: 38.8 | L26: 43.7 | M26: 48.6 | N26: 48.6 | O26: 39.9 | P26: 38.4 | Q26: 38 | R26: 34 | S26: 31.2 | T26: =[3]BS!$C$28 -> 38.1 | U26: =[4]BS!$C$28 -> 34.6 | V26: =[5]BS!$C$28 -> 31.1 | W26: =[6]BS!$C$28 -> 26.4 | X26: =[7]BS!$C$28 -> 35.1 | Y26: =[8]BS!$C$28 -> 29.1 | Z26: =[9]BS!$C$28 -> 27.2 | AA26: =[10]BS!$C$27 -> 22.9
A27: Środki pieniężne i depozyty krótkoterminowe | B27: Cash and short-term deposits | C27: 308 | D27: 298.4 | E27: 147.8 | F27: 184.5 | G27: 264.7 | H27: 247.8 | I27: 35.1 | J27: 94.9 | K27: 168.7 | L27: 179.7 | M27: 79.4 | N27: 94 | O27: 164.8 | P27: 254.9 | Q27: 134.9 | R27: 181.2 | S27: 233.1 | T27: =[3]BS!$C$30 -> 389 | U27: =[4]BS!$C$30 -> 172.8 | V27: =[5]BS!$C$30 -> 212.2 | W27: =[6]BS!$C$30 -> 306.4 | X27: =[7]BS!$C$30 -> 391.2 | Y27: =[8]BS!$C$30 -> 162.8 | Z27: =[9]BS!$C$30 -> 130 | AA27: =[10]BS!$C$29 -> 260.7
A28: Aktywa przeznaczone do sprzedaży | B28: Assets held for sale | C28: 3.9 | D28: 3.9 | E28: 3.9 | F28: 6 | G28: 6 | H28: 3.5 | I28: 1.9 | J28: 0 | K28: 0 | L28: 0 | M28: 0 | N28: 0 | O28: 0 | P28: 0 | Q28: 0 | R28: 0 | S28: 0 | T28: =[3]BS!$C$32 -> 0 | U28: =[4]BS!$C$32 -> 2.6 | V28: =[5]BS!$C$32 -> 2.6 | W28: =[6]BS!$C$32 -> 20.1 | X28: =[7]BS!$C$32 -> 20.1 | Y28: =[8]BS!$C$32 -> 20.1 | Z28: =[9]BS!$C$32 -> 20.1 | AA28: =[10]BS!$C$31 -> 20.1
C29: =SUM(C19:C28) -> 785.3 | D29: =SUM(D19:D28) -> 754.5 | E29: =SUM(E19:E28) -> 571 | F29: =SUM(F19:F28) -> 578.3 | G29: =SUM(G19:G28) -> 605.9 | H29: =SUM(H19:H28) -> 655 | I29: =SUM(I19:I28) -> 410.3 | J29: 405.3 | K29: =SUM(K19:K28) -> 461.7 | L29: 572 | M29: 388.4 | N29: 479.4 | O29: 567.3 | P29: 671.4 | Q29: 499 | R29: 596.9 | S29: =SUM(S19:S28) -> 661.4 | T29: 800.4 | U29: =SUM(U19:U28) -> 626.9 | V29: 686.7 | W29: =SUM(W19:W28) -> 789.9 | X29: 921.4 | Y29: =SUM(Y19:Y28) -> 739.6 | Z29: 704.9 | AA29: =SUM(AA19:AA28) -> 749.1
A32: SUMA AKTYWÓW | B32: TOTAL ASSETS | C32: =SUM(C17,C29) -> 5498 | D32: =SUM(D17,D29) -> 5463.9 | E32: =SUM(E17,E29) -> 5255.1 | F32: =SUM(F17,F29) -> 5256.6 | G32: =SUM(G17,G29) -> 5316.9 | H32: =SUM(H17,H29) -> 5430.3 | I32: =SUM(I17,I29) -> 5179.9 | J32: 5181.9 | K32: =SUM(K17,K29) -> 5235.7 | L32: 5348.9 | M32: 5161.5 | N32: 5242.5 | O32: 5370.1 | P32: 5469.2 | Q32: 5281.4 | R32: 5348.4 | S32: =SUM(S17,S29) -> 5432 | T32: 5565.3 | U32: =SUM(U17,U29) -> 5373.1 | V32: 5427.2 | W32: =SUM(W17,W29) -> 5509.8 | X32: 5661.3 | Y32: =SUM(Y17,Y29) -> 5469.3 | Z32: 5334.4 | AA32: =SUM(AA17,AA29) -> 5374.7
A34: KAPITAŁ WŁASNY OGÓŁEM | B34: TOTAL EQUITY | C34: 5035.7 | D34: 5078.9 | E34: 4869 | F34: 4909 | G34: 4949.8 | H34: 5046 | I34: 4838.5 | J34: 4869.1 | K34: 4892.4 | L34: 5021.4 | M34: 4820.2 | N34: 4856 | O34: 4902.2 | P34: 5057.3 | Q34: 4893.4 | R34: 4946.8 | S34: 4965.7 | T34: =[3]BS!$C$43 -> 5116.2 | U34: =[4]BS!$C$43 -> 4939.4 | V34: =[5]BS!$C$43 -> 4986.5 | W34: =[6]BS!$C$43 -> 5027.2 | X34: =[7]BS!$C$43 -> 5186.9 | Y34: =[8]BS!$C$43 -> 4962.5 | Z34: =[9]BS!$C$44 -> 3886.3 | AA34: =[10]BS!$C$43 -> 3901.4
A36: Zobowiązania długoterminowe | B36: Non-current liabilities
A37: Długoterminowe oprocentowane kredyty bankowe, pożyczki, dłużne papiery wartościowe | B37: Long-term interest-bearing bank loans, borrowings and debt securities | C37: 63.6 | D37: 59.9 | E37: 46.4 | F37: 42.5 | G37: 38.8 | H37: 0 | I37: 0 | J37: 0 | K37: 0 | L37: 0 | M37: 0 | N37: 0 | O37: 0 | P37: 0 | Q37: 0 | R37: 0 | S37: 0 | T37: =[3]BS!$C$45 -> 0 | U37: =[4]BS!$C45 -> 0 | V37: =[5]BS!$C$45 -> 0 | W37: =[6]BS!$C$45 -> 0 | X37: =[7]BS!$C$45 -> 0 | Y37: =[8]BS!$C$45 -> 0 | Z37: =[9]BS!$C$46 -> 849.9 | AA37: =[10]BS!$C$45 -> 826.1
A38: Dł. zob. z tyt. leasingu | B38: Non-current lease liabilities | C38: 44 | D38: 38.8 | E38: 34.2 | F38: 27.7 | G38: 21.8 | H38: 76.1 | I38: 67.6 | J38: 59.1 | K38: 55 | L38: 54.2 | M38: 61.7 | N38: 59.7 | O38: 63.2 | P38: 62.3 | Q38: 59.6 | R38: 58.2 | S38: 67.2 | T38: =[3]BS!$C$46 -> 65.3 | U38: =[4]BS!$C46 -> 63.6 | V38: =[5]BS!$C$46 -> 61.3 | W38: =[6]BS!$C$46 -> 60.1 | X38: =[7]BS!$C$46 -> 59.8 | Y38: =[8]BS!$C$46 -> 55.8 | Z38: =[9]BS!$C$47 -> 54.2 | AA38: =[10]BS!$C$46 -> 76
A39: Długoterminowe zobowiązania finansowe | B39: Long-term financial liabilities | C39: 0 | D39: 0 | E39: 1.2 | F39: 0 | G39: 2.2 | H39: 2.7 | I39: 2.8 | J39: 7.4 | K39: 6 | L39: 8.3 | M39: 5.4 | N39: 2.9 | O39: 3.8 | P39: 3.8 | Q39: 3.4 | R39: 0.2 | S39: 0.5 | T39: =[3]BS!$C$47 -> 0.6 | U39: =[4]BS!$C47 -> 0.4 | V39: =[5]BS!$C$47 -> 0.6 | W39: =[6]BS!$C$47 -> 0.2 | X39: =[7]BS!$C$47 -> 0.2 | Y39: =[8]BS!$C$47 -> 0 | Z39: =[9]BS!$C$48 -> 0 | AA39: =[10]BS!$C$47 -> 0
A40: Rezerwa z tytułu odr. podatku doch. | B40: Deferred income tax liabilities | C40: 18.7 | D40: 25 | E40: 28 | F40: 28.2 | G40: 26.3 | H40: 29.5 | I40: 28.4 | J40: 27.3 | K40: 22.3 | L40: 25.2 | M40: 28.3 | N40: 28.8 | O40: 21.8 | P40: 24.6 | Q40: 27.9 | R40: 31.3 | S40: 29.4 | T40: =[3]BS!$C$48 -> 32.6 | U40: =[4]BS!$C48 -> 35.3 | V40: =[5]BS!$C$48 -> 36.5 | W40: =[6]BS!$C$48 -> 37.6 | X40: =[7]BS!$C$48 -> 45.2 | Y40: =[8]BS!$C$48 -> 43.3 | Z40: =[9]BS!$C$49 -> 32 | AA40: =[10]BS!$C$48 -> 21.1
A41: Długoterminowe zobowiązania z tytułu umów z klientami | B41: Long-term contract liabilities | C41: 0 | D41: 0 | E41: 4.8 | F41: 6 | G41: 8.7 | H41: 8.3 | I41: 8.3 | J41: 12.2 | K41: 17.5 | L41: 11.8 | M41: 19.1 | N41: 40.9 | O41: 46.9 | P41: 41.9 | Q41: 36.2 | R41: 37.5 | S41: 31 | T41: =[3]BS!$C$49 -> 30.5 | U41: =[4]BS!$C49 -> 25.7 | V41: =[5]BS!$C$49 -> 24.3 | W41: =[6]BS!$C$49 -> 27.1 | X41: =[7]BS!$C$49 -> 25.3 | Y41: =[8]BS!$C$49 -> 27.8 | Z41: =[9]BS!$C$50 -> 27.3 | AA41: =[10]BS!$C$49 -> 36.2
A42: Zobowiązania z tytułu podatku dochodowego od osób prawnych | B42: Liabilities due to corporate income tax | C42: 0 | D42: 0 | E42: 0 | F42: 0 | G42: 0 | H42: 0 | I42: 0 | J42: 0 | K42: 0 | L42: 0 | M42: 0 | N42: 0 | O42: 0 | P42: 0 | Q42: 0 | R42: 0 | S42: 2.6 | T42: =[3]BS!$C$50 -> 2.6 | U42: =[4]BS!$C50 -> 2.6 | V42: =[5]BS!$C$50 -> 2.6 | W42: =[6]BS!$C$50 -> 2.6 | X42: =[7]BS!$C$50 -> 2.6 | Y42: =[8]BS!$C$50 -> 2.6 | Z42: =[9]BS!$C$51 -> 2.6 | AA42: =[10]BS!$C$50 -> 5.6
A43: Długoterminowe pozostałe zobowiązania | B43: Other long-term liabilities | C43: 0.3 | D43: 0.3 | E43: 0.1 | F43: 0.5 | G43: 0.5 | H43: 0.3 | I43: 0.3 | J43: 0.1 | K43: 0.1 | L43: 0.1 | M43: 0.2 | N43: 0.1 | O43: 0.3 | P43: 0.3 | Q43: 0.4 | R43: 0.2 | S43: 1.3 | T43: =[3]BS!$C$51 -> 1.2 | U43: =[4]BS!$C51 -> 1.2 | V43: =[5]BS!$C$51 -> 0.9 | W43: =[6]BS!$C$51 -> 0.9 | X43: =[7]BS!$C$51 -> 0.9 | Y43: =[8]BS!$C$51 -> 0.8 | Z43: =[9]BS!$C$52 -> 0.6 | AA43: =[10]BS!$C$51 -> 0.6
A44: Długoterminowe rezerwy | B44: Long-term provisions | C44: 22.3 | D44: 17 | E44: 14.7 | F44: 12.5 | G44: 9.7 | H44: 9 | I44: 11.3 | J44: 6.2 | K44: 3.6 | L44: 3.1 | M44: 3.6 | N44: 5.3 | O44: 3.8 | P44: 3.9 | Q44: 4 | R44: 3.7 | S44: 3.3 | T44: =[3]BS!$C$52 -> 3.3 | U44: =[4]BS!$C52 -> 3 | V44: =[5]BS!$C$52 -> 3 | W44: =[6]BS!$C$52 -> 4.9 | X44: =[7]BS!$C$52 -> 4.4 | Y44: =[8]BS!$C$52 -> 13.5 | Z44: =[9]BS!$C$53 -> 11.6 | AA44: =[10]BS!$C$52 -> 6.9
A45: Długoterminowe rozliczenia międzyokresowe przychodów i kosztów | B45: Long-term deferred income and accrued expenses | C45: 34.9 | D45: 37.1 | E45: 31.5 | F45: 31.9 | G45: 32.4 | H45: 33 | I45: 33.1 | J45: 33.1 | K45: 32.7 | L45: 41.8 | M45: 45.1 | N45: 49.6 | O45: 51.8 | P45: 50.9 | Q45: 50.3 | R45: 49.8 | S45: 49.3 | T45: =[3]BS!$C$53 -> 48.8 | U45: =[4]BS!$C53 -> 48.2 | V45: =[5]BS!$C$53 -> 47.7 | W45: =[6]BS!$C$53 -> 47.2 | X45: =[7]BS!$C$53 -> 46.6 | Y45: =[8]BS!$C$53 -> 46.1 | Z45: =[9]BS!$C$54 -> 45.6 | AA45: =[10]BS!$C$53 -> 45
C46: =SUM(C37:C45) -> 183.8 | D46: =SUM(D37:D45) -> 178.1 | E46: =SUM(E37:E45) -> 160.9 | F46: =SUM(F37:F45) -> 149.3 | G46: =SUM(G37:G45) -> 140.4 | H46: =SUM(H37:H45) -> 158.9 | I46: =SUM(I37:I45) -> 151.8 | J46: 145.4 | K46: 137.2 | L46: 144.5 | M46: 163.4 | N46: =SUM(N37:N45) -> 187.3 | O46: 191.6 | P46: 187.7 | Q46: 181.8 | R46: 180.9 | S46: 184.6 | T46: 184.9 | U46: 180 | V46: =SUM(V37:V45) -> 176.9 | W46: 180.6 | X46: =SUM(X37:X45) -> 185 | Y46: 189.9 | Z46: =SUM(Z37:Z45) -> 1023.8 | AA46: 1017.5
A47: Zobowiązania krótkoterminowe | B47: Current liabilities
A48: Oprocentowane kredyty bankowe, pożyczki, dłużne papiery wartościowe | B48: Interest-bearing bank loans, borrowings and debt securities | C48: 25.3 | D48: 25.2 | E48: 15.4 | F48: 15.3 | G48: 15.2 | H48: 25.9 | I48: 1.1 | J48: 0.5 | K48: 0 | L48: 0 | M48: 0 | N48: 0 | O48: 0 | P48: 0 | Q48: 0 | R48: 0 | S48: 0 | T48: =[3]BS!$C$56 -> 0 | U48: =[4]BS!$C56 -> 0 | V48: =[5]BS!$C$56 -> 0 | W48: =[5]BS!$C$56 -> 0 | X48: =[5]BS!$C$56 -> 0 | Y48: =[8]BS!$C$56 -> 0 | Z48: =[9]BS!$C$57 -> 96.5 | AA48: =[10]BS!$C$56 -> 100.4
A49: Zob. z tyt. leasingu | B49: Lease liabilities | C49: 21.5 | D49: 22 | E49: 23.1 | F49: 23 | G49: 23.6 | H49: 31.9 | I49: 31.8 | J49: 32.4 | K49: 27.6 | L49: 22.5 | M49: 16.2 | N49: 9.9 | O49: 8.8 | P49: 8.9 | Q49: 8.8 | R49: 8.8 | S49: 10.8 | T49: =[3]BS!$C$57 -> 11.6 | U49: =[4]BS!$C57 -> 11.9 | V49: =[5]BS!$C$57 -> 12.8 | W49: =[6]BS!$C$57 -> 12.8 | X49: =[7]BS!$C$57 -> 13.7 | Y49: =[8]BS!$C$57 -> 12.9 | Z49: =[9]BS!$C$58 -> 13 | AA49: =[10]BS!$C$57 -> 13.4
A50: Inne zobowiązania finansowe | B50: Other financial liabilities | C50: 16.8 | D50: 0.1 | E50: 1.8 | F50: 1.1 | G50: 1 | H50: 2.2 | I50: 2.3 | J50: 0.9 | K50: 0.7 | L50: 1.5 | M50: 2.3 | N50: 2.3 | O50: 2.3 | P50: 2.6 | Q50: 2.3 | R50: 5.7 | S50: 6.9 | T50: =[3]BS!$C$58 -> 6.9 | U50: =[4]BS!$C58 -> 7 | V50: =[5]BS!$C$58 -> 0.9 | W50: =[6]BS!$C$58 -> 0.2 | X50: =[7]BS!$C$58 -> 0.1 | Y50: =[8]BS!$C$58 -> 0 | Z50: =[9]BS!$C$59 -> 0 | AA50: =[10]BS!$C$58 -> 0
A51: Zobowiązania z tytułu dostaw i usług | B51: Trade payables | C51: 122.4 | D51: 70.4 | E51: 85.9 | F51: 66 | G51: 75.8 | H51: 66.9 | I51: 63.2 | J51: 50.3 | K51: 70.4 | L51: 51.7 | M51: 46 | N51: 65 | O51: 84.1 | P51: 58.3 | Q51: 53.6 | R51: 47.1 | S51: 99.6 | T51: =[3]BS!$C$59 -> 60.6 | U51: =[4]BS!$C59 -> 56.6 | V51: =[5]BS!$C$59 -> 75 | W51: =[6]BS!$C$59 -> 84.6 | X51: =[7]BS!$C$59 -> 71.3 | Y51: =[8]BS!$C$59 -> 96.9 | Z51: =[9]BS!$C$60 -> 98.4 | AA51: =[10]BS!$C$59 -> 101.6
A52: Krótkoterminowe zobowiązania z tytułu umów z klientami | B52: Current contract liabilities | C52: 0 | D52: 0 | E52: 24.7 | F52: 20 | G52: 26.5 | H52: 23.5 | I52: 27.6 | J52: 26.2 | K52: 34.9 | L52: 48.1 | M52: 46.2 | N52: 57.8 | O52: 98.9 | P52: 85.8 | Q52: 71.3 | R52: 63.8 | S52: 63.7 | T52: =[3]BS!$C$60 -> 74.6 | U52: =[4]BS!$C60 -> 72.7 | V52: =[5]BS!$C$60 -> 67.2 | W52: =[6]BS!$C$60 -> 71.7 | X52: =[7]BS!$C$60 -> 78 | Y52: =[8]BS!$C$60 -> 68.1 | Z52: =[9]BS!$C$61 -> 71.4 | AA52: =[10]BS!$C$60 -> 73.4
A53: Zobowiązania budżetowe | B53: Liabilities to the state and local budgets | C53: 11.3 | D53: 17.5 | E53: 14.6 | F53: 13 | G53: 15.6 | H53: 12.7 | I53: 20.4 | J53: 11 | K53: 13.2 | L53: 16.4 | M53: 13.6 | N53: 13.7 | O53: 28.6 | P53: 16.2 | Q53: 12.7 | R53: 22.5 | S53: 34.9 | T53: =ROUND([11]D_BS!$C$65,1)/1000 -> 38.297 | U53: =ROUND([12]D_BS!$C$65,1)/1000-U54 -> 25.56 | V53: =ROUND([13]D_BS!$C$65/1000,1)-V54 -> 26.2 | W53: =ROUND([14]D_BS!$C$67/1000,1)-W54+0.1 -> 42.9 | X53: =ROUND([15]D_BS!$C$67/1000,1)-X54 -> 29.6 | Y53: =ROUND([16]D_BS!$C$67/1000,1)-Y54 -> 32.9 | Z53: =ROUND([17]D_BS!$C$67/1000,1)-Z54 -> 35.1 | AA53: =ROUND([18]D_BS!$C$67/1000,1)-AA54 -> 44.1
A54: Zobowiązania z tytułu podatku dochodowego od osób prawych | B54: Corporate income tax payable | C54: 0 | D54: 0 | E54: 4.1 | F54: 8.4 | G54: 15.1 | H54: 10.3 | I54: 0 | J54: 0 | K54: 4.6 | L54: 0.6 | M54: 0 | N54: 0 | O54: 0 | P54: 0 | Q54: 0 | R54: 5.5 | S54: 4.8 | T54: =[3]BS!$C$61 -> 6.9 | U54: =[4]BS!$C$61 -> 2.8 | V54: =[5]BS!$C$61 -> 3 | W54: =[6]BS!$C$61 -> 9 | X54: =[7]BS!$C$61 -> 8 | Y54: =[8]BS!$C$61 -> 18.1 | Z54: =[9]BS!$C$62 -> 25 | AA54: =[10]BS!$C$61 -> 32.3
A55: Pozostałe zobowiązania (w tym zobowiązania przeznaczone do sprzedaży) | B55: Other liabilities (includng liabilities held for sale) | C55: 18.3 | D55: 9.9 | E55: 11.2 | F55: 9.7 | G55: 7 | H55: 2.9 | I55: 6.4 | J55: 8.5 | K55: 11.5 | L55: 2.6 | M55: 2.6 | N55: 2.9 | O55: 6.7 | P55: 4 | Q55: 2.6 | R55: 20 | S55: 26.1 | T55: =[3]BS!$C$62-T53 -> 17.803 | U55: =[4]BS!$C$62-U53 -> 25.04 | V55: =[5]BS!$C$62-V53+[5]BS!$C$65 -> 26.6 | W55: =[6]BS!$C$62-W53+[6]BS!$C$65 -> 30.6 | X55: =[7]BS!$C$62-X53+[7]BS!$C$65 -> 28.6 | Y55: =[8]BS!$C$62-Y53+[8]BS!$C$65 -> 27 | Z55: =[9]BS!$C$63-Z53+[9]BS!$C$66+0.1 -> 28.1 | AA55: =[10]BS!$C$62-AA53+[10]BS!$C$65+0.1 -> 31.8
A56: Rezerwy | B56: Provisions | C56: 16.2 | D56: 10.7 | E56: 10.5 | F56: 10.4 | G56: 11.8 | H56: 10.3 | I56: 5.8 | J56: 9.2 | K56: 8.7 | L56: 8.6 | M56: 8.4 | N56: 6 | O56: 5.7 | P56: 3 | Q56: 2.3 | R56: 3 | S56: 4.6 | T56: =[3]BS!$C$63 -> 2.7 | U56: =[4]BS!$C$63 -> 1.2 | V56: =[5]BS!$C$63 -> 3.4 | W56: =[6]BS!$C$63 -> 5.7 | X56: =[7]BS!$C$63 -> 5.4 | Y56: =[8]BS!$C$63 -> 4.7 | Z56: =[9]BS!$C$64 -> 4.7 | AA56: =[10]BS!$C$63 -> 9.7
A57: Rozliczenia międzyokresowe kosztów | B57: Accruals | C57: 31 | D57: 28 | E57: 32.5 | F57: 30.1 | G57: 33.8 | H57: 37.6 | I57: 29.8 | J57: 27.2 | K57: 33 | L57: 29.5 | M57: 41 | N57: 40.1 | O57: 39.7 | P57: 43.1 | Q57: 50.3 | R57: 42.1 | S57: 28.1 | T57: =ROUND([11]D_BS!$C$71/1000,1) -> 42.5 | U57: =ROUND([12]D_BS!$C$71/1000,1) -> 48.7 | V57: =ROUND([13]D_BS!$C$71/1000,1) -> 46.6 | W57: =ROUND([14]D_BS!$C$74/1000,1) -> 42.5 | X57: =ROUND([15]D_BS!$C$74/1000,1) -> 52.6 | Y57: =ROUND([16]D_BS!$C$74/1000,1) -> 54.2 | Z57: =ROUND([17]D_BS!$C$74/1000,1) -> 50 | AA57: =ROUND([18]D_BS!$C$74/1000,1) -> 47
A58: Rozliczenia międzyokresowe przychodów | B58: Deferred income | C58: 15.7 | D58: 23.1 | E58: 1.4 | F58: 1.3 | G58: 1.3 | H58: 1.2 | I58: 1.2 | J58: 1.2 | K58: 1.5 | L58: 1.5 | M58: 1.6 | N58: 1.5 | O58: 1.5 | P58: 2.3 | Q58: 2.3 | R58: 2.2 | S58: 2.2 | T58: =ROUND([19]D_BS!G73/1000,1)-ROUND(SUM([19]N_28B!$G$8,[19]N_28B!$G$12,[19]N_28B!$G$16,[19]N_28B!$G$20)/1000,1)-ROUND([19]N_28B!$G$21/1000,1)+0.2 -> 2.3 | U58: =ROUND([20]D_BS!$G$73/1000,1)-ROUND(SUM([20]N_28B!$G$8,[20]N_28B!$G$12,[20]N_28B!$G$16,[20]N_28B!$G$20)/1000,1)-ROUND([20]N_28B!$G$21/1000,1)+0.1 -> 2.2 | V58: =ROUND([21]D_BS!$G$73/1000,1)-ROUND(SUM([21]N_28B!$G$8,[21]N_28B!$G$12,[21]N_28B!$G$16,[21]N_28B!$G$20,[21]N_28B!$G$21)/1000,1) -> 2.1 | W58: =ROUND([22]D_BS!$G$76/1000,1)-0.1 -> 2 | X58: =ROUND([23]D_BS!$C$73/1000,1) -> 2.1 | Y58: =ROUND([16]D_BS!$C$73/1000,1) -> 2.1 | Z58: =ROUND([17]D_BS!$C$73/1000,1) -> 2.1 | AA58: =ROUND([18]D_BS!$C$73/1000,1) -> 2.1
C59: =SUM(C48:C58) -> 278.5 | D59: =SUM(D48:D58) -> 206.9 | E59: =SUM(E48:E58) -> 225.2 | F59: =SUM(F48:F58) -> 198.3 | G59: =SUM(G48:G58) -> 226.7 | H59: =SUM(H48:H58) -> 225.4 | I59: =SUM(I48:I58) -> 189.6 | J59: 167.4 | K59: 206.1 | L59: 183 | M59: 177.9 | N59: 199.2 | O59: =SUM(O48:O58) -> 276.3 | P59: 224.2 | Q59: 206.2 | R59: 220.7 | S59: =SUM(S48:S58) -> 281.7 | T59: 264.2 | U59: 253.7 | V59: =SUM(V48:V58) -> 263.8 | W59: 302 | X59: =SUM(X48:X58) -> 289.4 | Y59: 316.9 | Z59: =SUM(Z48:Z58) -> 424.3 | AA59: 455.8
A61: SUMA ZOBOWIĄZAŃ | B61: TOTAL LIABILITIES | C61: =SUM(C46,C59) -> 462.3 | D61: =SUM(D46,D59) -> 385 | E61: =SUM(E46,E59) -> 386.1 | F61: =SUM(F46,F59) -> 347.6 | G61: =SUM(G46,G59) -> 367.1 | H61: =SUM(H46,H59) -> 384.3 | I61: =SUM(I46,I59) -> 341.4 | J61: 312.8 | K61: 343.3 | L61: 327.5 | M61: =SUM(M46,M59) -> 341.3 | N61: 386.5 | O61: =SUM(O46,O59) -> 467.9 | P61: 411.9 | Q61: 388 | R61: 401.6 | S61: =SUM(S46,S59) -> 466.3 | T61: 449.1 | U61: 433.7 | V61: =SUM(V46,V59) -> 440.7 | W61: 482.6 | X61: =SUM(X46,X59) -> 474.4 | Y61: 506.8 | Z61: =SUM(Z46,Z59) -> 1448.1 | AA61: 1473.3
A63: SUMA PASYWÓW | B63: TOTAL EQUITY AND LIABILITIES | C63: =SUM(C34,C61) -> 5498 | D63: =SUM(D34,D61) -> 5463.9 | E63: =SUM(E34,E61) -> 5255.1 | F63: =SUM(F34,F61) -> 5256.6 | G63: =SUM(G34,G61) -> 5316.9 | H63: =SUM(H34,H61) -> 5430.3 | I63: =SUM(I34,I61) -> 5179.9 | J63: 5181.9 | K63: 5235.7 | L63: 5348.9 | M63: =SUM(M34,M61) -> 5161.5 | N63: 5242.5 | O63: =SUM(O34,O61) -> 5370.1 | P63: 5469.2 | Q63: 5281.4 | R63: 5348.4 | S63: =SUM(S34,S61) -> 5432 | T63: 5565.3 | U63: 5373.1 | V63: =SUM(V34,V61) -> 5427.2 | W63: 5509.8 | X63: =SUM(X34,X61) -> 5661.3 | Y63: 5469.3 | Z63: =SUM(Z34,Z61) -> 5334.4 | AA63: 5374.7
C64: =C63-C32 -> 0 | D64: =D63-D32 -> 0 | E64: =E63-E32 -> 0 | F64: =F63-F32 -> 0 | G64: =G63-G32 -> 0 | H64: =H63-H32 -> 0 | I64: =I63-I32 -> 0 | J64: 0 | K64: =K63-K32 -> 0 | L64: 0 | M64: 0 | N64: 0 | O64: 0 | P64: 0 | Q64: 0 | R64: 0 | S64: 0 | T64: =T63-T32 -> 0 | U64: 0 | V64: =V63-V32 -> 0 | W64: 0 | X64: =X63-X32 -> 0 | Y64: 0 | Z64: =Z63-Z32 -> 0 | AA64: 0

Sheet CF
A1: RACHUNEK PRZEPŁYWÓW PIENIĘŻNYCH ASSECO POLAND S.A. | B1: STATEMENT OF CASH FLOWS OF ASSECO POLAND S.A. | C1: YE 2017 | D1: Q1 2018 | E1: Q2 2018 | F1: Q3 2018 | G1: Q4 2018 | H1: Q1 2019 | I1: Q2 2019 | J1: Q3 2019 | K1: Q4 2019 | L1: Q1 2020 | M1: Q2 2020 | N1: Q3 2020 | O1: Q4 2020 | P1: Q1 2021 | Q1: Q2 2021 | R1: Q3 2021 | S1: Q4 2021 | T1: Q1 2022 | U1: Q2 2022 | V1: Q3 2022 | W1: Q4 2022 | X1: Q1 2023 | Y1: Q2 2023 | Z1: Q3 2023 | AA1: Q4 2023
C2: mln PLN | D2: mln PLN | E2: mln PLN | F2: mln PLN | G2: mln PLN | H2: mln PLN | I2: mln PLN | J2: mln PLN | K2: mln PLN | L2: mln PLN | M2: mln PLN | N2: mln PLN | O2: mln PLN | P2: mln PLN | Q2: mln PLN | R2: mln PLN | S2: mln PLN | T2: mln PLN | U2: mln PLN | V2: mln PLN | W2: mln PLN | X2: mln PLN | Y2: mln PLN | Z2: mln PLN | AA2: mln PLN
A4: Przepływy środków pieniężnych z działalności operacyjnej | B4: Cash flows – operating activities
A5: Zysk brutto | B5: Pre-tax profit | C5: 204.8 | D5: 58.4 | E5: 50.4 | F5: 50.9 | G5: 51 | H5: 109.2 | I5: 53.8 | J5: 34.1 | K5: 27.7 | L5: 134.6 | M5: 58.1 | N5: 51.7 | O5: 47.3 | P5: 164.6 | Q5: 106.9 | R5: 64.611 | S5: 24.9 | T5: =[3]CF!$D$10 -> 162.2 | U5: =[4]CF!$D10-T5 -> 111.1 | V5: =[5]CF!$D$10-U5-T5 -> 55.1 | W5: =[6]CF!$D$10-T5-U5-V5 -> 56.3 | X5: =[7]CF!$D$10 -> 173.1 | Y5: =[8]CF!$D$10-X5 -> 81.9 | Z5: =[9]CF!D10-Y5-X5 -> 112.5 | AA5: =[10]CF!$D$10-X5-Y5-Z5 -> 23.5
A6: Korekty o pozycje: | B6: Total adjustments: | C6: =SUM(C7:C16) -> -93.4 | D6: =SUM(D7:D16) -> -38.2 | E6: 44.8 | F6: 13.3 | G6: 62.6 | H6: =SUM(H7:H16) -> -71.7 | I6: =SUM(I7:I16) -> -43.7 | J6: 39.4 | K6: 61.5 | L6: =SUM(L7:L16) -> -98 | M6: -17.7 | N6: -13 | O6: 47.1 | P6: -121.1 | Q6: -52.1 | R6: -10.6 | S6: 44.7 | T6: =SUM(T7:T16) -> -82 | U6: -86.2 | V6: =SUM(V7:V16) -> -22.7 | W6: =SUM(W7:W16) -> 29.9 | X6: =SUM(X7:X16) -> -168.2 | Y6: =SUM(Y7:Y16) -> -23.6 | Z6: =SUM(Z7:Z16) -> -6.6 | AA6: =SUM(AA7:AA16) -> 114.3
A7: Amortyzacja | B7: Depreciation and amortization | C7: 54.1 | D7: 13.5 | E7: 13.5 | F7: 15 | G7: 14.6 | H7: 16.8 | I7: 15.5 | J7: 15.6 | K7: 15.8 | L7: 15.9 | M7: 15.8 | N7: 16.9 | O7: 15 | P7: 14 | Q7: 13.7 | R7: 14.1 | S7: 13.9 | T7: =[3]CF!$D$12 -> 14.7 | U7: =[4]CF!$D12-T7 -> 14.6 | V7: =[5]CF!$D$12-U7-T7 -> 14.2 | W7: =[6]CF!$D$12-T7-U7-V7 -> 14.6 | X7: =[7]CF!$D$12 -> 14.6 | Y7: =[8]CF!$D$12-X7 -> 14.9 | Z7: =[9]CF!D12-Y7-X7 -> 15.2 | AA7: =[10]CF!D12-X7-Y7-Z7 -> 15.7
A8: Zmiany stanu kapitału pracującego | B8: Changes in working capital | C8: -29 | D8: -37.8 | E8: 35.1 | F8: 1.3 | G8: 55.1 | H8: -7.5 | I8: -39 | J8: 31.6 | K8: 55.5 | L8: -12.7 | M8: -10.7 | N8: -20.2 | O8: 27.1 | P8: -15.1 | Q8: -17 | R8: -14.9 | S8: 29.1 | T8: =[3]CF!$D$13 -> 19.1 | U8: =[4]CF!$D13-T8 -> -38.6 | V8: =[5]CF!$D$13-U8-T8 -> -29.6 | W8: =[6]CF!$D$13-T8-U8-V8 -> 20.2 | X8: =[7]CF!$D$13 -> -62.9 | Y8: =[8]CF!$D$13-X8 -> -20.6 | Z8: =[9]CF!D13-Y8-X8 -> 46.6 | AA8: =[10]CF!D13-X8-Y8-Z8 -> 78.9
A9: Przychody/koszty z tytułu odsetek | B9: Interest income/expenses | C9: 2.6 | D9: -0.4 | E9: -0.2 | F9: 0.6 | G9: -1 | H9: 0.1 | I9: -0.1 | J9: 0.4 | K9: -0.1 | L9: -0.2 | M9: 0.5 | N9: 0.3 | O9: -1.2 | P9: 0.3 | Q9: 0.4 | R9: 0.5 | S9: 0 | T9: =[3]CF!$D$14 -> -0.5 | U9: =[4]CF!$D14-T9 -> -2.9 | V9: =[5]CF!$D$14-U9-T9 -> 3.7 | W9: =[6]CF!$D$14-T9-U9-V9 -> 0.2 | X9: =[7]CF!$D$14 -> 0.3 | Y9: =[8]CF!$D$14-X9 -> 0.5 | Z9: =[9]CF!D14-Y9-X9 -> 2.1 | AA9: =[10]CF!D14-X9-Y9-Z9 -> 16.6
A10: Zyski/straty z tytułu różnic kursowych | B10: Gain / loss on foreign exchange differences | C10: 0.7 | D10: 1 | E10: -2.5 | F10: 1.3 | G10: 0.2 | H10: -2.7 | I10: 2.2 | J10: -4.5 | K10: 2.8 | L10: -0.8 | M10: 0.4 | N10: 2 | O10: -1.2 | P10: -1.5 | Q10: 1.2 | R10: -3.7 | S10: 1.2 | T10: =[3]CF!$D$15 -> -0.2 | U10: =[4]CF!$D15-T10 -> 0.4 | V10: =[5]CF!$D$15-U10-T10 -> -1.3 | W10: =[6]CF!$D$15-T10-U10-V10 -> 6.1 | X10: =[7]CF!$D$15 -> -0.1 | Y10: =[8]CF!$D$15-X10 -> -0.5 | Z10: =[9]CF!D15-Y10-X10 -> 0.3 | AA10: =[10]CF!D15-X10-Y10-Z10 -> -1.2
A11: Przychody z tytułu dywidend | B11: Dividend income | C11: -145.3 | D11: -6.4 | E11: -9.2 | F11: 0 | G11: -4.9 | H11: -79.3 | I11: -20.7 | J11: -8 | K11: -6.8 | L11: -104.8 | M11: -23.1 | N11: -8.3 | O11: 0 | P11: -119.5 | Q11: -39 | R11: -11.9 | S11: 0 | T11: =[3]CF!$D$16 -> -115.6 | U11: =[4]CF!$D16-T11 -> -57.9 | V11: =[5]CF!$D$16-U11-T11 -> -6.7 | W11: =[6]CF!$D$16-T11-U11-V11 -> -11.1 | X11: =[7]CF!$D$16 -> -119.5 | Y11: =[8]CF!$D$16-X11 -> -24.3 | Z11: =[9]CF!D16-Y11-X11 -> -72 | AA11: =[10]CF!D16-X11-Y11-Z11 -> 0
A12: Strata ze sprzedaży akcji/udziałów w jednostkach powiązanych | B12: Gain / loss on sales of share in subsidiaries | C12: -127.4 | D12: 0 | E12: 0 | F12: 0 | G12: 0 | H12: 0 | I12: -0.7 | J12: 0.7 | K12: 0 | L12: 0 | M12: 0 | N12: 0 | O12: 0 | P12: 0 | Q12: 0 | R12: 0 | S12: 0 | T12: 0 | U12: =[4]CF!$D17-T12 -> 0 | V12: =[5]CF!$D$17-U12-T12 -> 0 | W12: =[6]CF!$D$17-T12-U12-V12 -> 0 | X12: =[7]CF!$D$17 -> 0 | Y12: =[8]CF!$D$17-X12 -> 0 | Z12: =[9]CF!D17-Y12-X12 -> 0 | AA12: =[10]CF!D17-X12-Y12-Z12 -> 0
A13: Pozostałe przychody/koszty finansowe | B13: Other financial (income)/ costs | C13: 72.5 | D13: -7.7 | E13: 8.3 | F13: -4.7 | G13: -0.8 | H13: 0.8 | I13: -0.8 | J13: 3.8 | K13: -4.9 | L13: 5.1 | M13: -3.1 | N13: -2.3 | O13: 1.3 | P13: 1.3 | Q13: -11 | R13: 4.6 | S13: 2.2 | T13: =[3]CF!$D$18 -> 0.6 | U13: =[4]CF!$D18-T13 -> -1.6 | V13: =[5]CF!$D$18-U13-T13 -> -4.1 | W13: =[6]CF!$D$18-T13-U13-V13 -> 3.3 | X13: =[7]CF!$D$18 -> 0.1 | Y13: =[8]CF!$D$18-X13 -> 6.7 | Z13: =[9]CF!D18-Y13-X13 -> 1 | AA13: =[10]CF!D18-X13-Y13-Z13 -> 1.2
A14: Odpis aktualizujący wartości niematerialne | B14: Intangible assets impairment | C14: 81.2 | D14: 0 | E14: 0 | F14: 0 | G14: 0 | H14: 0 | I14: 0 | J14: 0 | K14: 0 | L14: 0 | M14: 0 | N14: 0 | O14: 0 | P14: 0 | Q14: 0 | R14: 0 | S14: 0 | T14: 0 | U14: 0 | V14: 0 | W14: 0 | X14: 0 | Y14: 0 | Z14: 0 | AA14: 0
A15: Zyski/straty z działalności inwestycyjnej | B15: Gain / loss on investing activities | C15: -2.8 | D15: -0.4 | E15: -0.2 | F15: -0.5 | G15: -0.3 | H15: 0 | I15: 0 | J15: -0.2 | K15: -0.8 | L15: -0.5 | M15: 2.5 | N15: -2.9 | O15: 6.9 | P15: -1.1 | Q15: -0.6 | R15: 0.8 | S15: -1.6 | T15: =[3]CF!$D$19 -> -0.1 | U15: =[4]CF!$D$19-T15 -> -0.2 | V15: =[5]CF!$D$19-U15-T15 -> 1.1 | W15: =[6]CF!$D$19-T15-U15-V15 -> -3.4 | X15: =[7]CF!$D$19 -> -0.7 | Y15: =[8]CF!$D$19-X15 -> -0.3 | Z15: =[9]CF!D19-Y15-X15 -> 0.2 | AA15: =[10]CF!$D$19-X15-Y15-Z15 -> 3.1
A16: Pozostałe korekty zysku brutto | B16: Other pre-tax profit adjustments | C16: 0 | D16: 0 | E16: 0 | F16: 0.3 | G16: -0.3 | H16: 0.1 | I16: -0.1 | J16: 0 | K16: 0 | L16: 0 | M16: 0 | N16: 1.5 | O16: -0.8 | P16: 0.5 | Q16: 0.2 | R16: -0.1 | S16: -0.1 | T16: =[3]CF!$D$21 -> 0 | U16: =[4]CF!$D$21-T16 -> 0 | V16: =[5]CF!$D$21-U16-T16 -> 0 | W16: =[6]CF!$D$21-T16-U16-V16 -> 0 | X16: =[7]CF!$D$21 -> 0 | Y16: =[8]CF!$D$21-X16 -> 0 | Z16: =[9]CF!D21-Y16-X16 -> 0 | AA16: 0
A17: Środki pieniężne netto wygenerowane z dział. operacyjnej | B17: Cash generated from operating activities | C17: =SUM(C5:C6) -> 111.4 | D17: =SUM(D5:D6) -> 20.2 | E17: 95.2 | F17: 64.2 | G17: 113.6 | H17: =SUM(H5:H6) -> 37.5 | I17: =SUM(I5:I6) -> 10.1 | J17: 73.5 | K17: 89.2 | L17: =SUM(L5:L6) -> 36.6 | M17: 40.4 | N17: 38.7 | O17: 94.4 | P17: 43.5 | Q17: 54.8 | R17: 54.011 | S17: 69.6 | T17: =SUM(T5:T6) -> 80.2 | U17: 24.9 | V17: =SUM(V5:V6) -> 32.4 | W17: 86.2 | X17: =SUM(X5:X6) -> 4.9 | Y17: 58.3 | Z17: =SUM(Z5:Z6) -> 105.9 | AA17: 137.8
A18: (Zapłacony podatek dochodowy) / Otrzymane zwroty podatku dochodowego | B18: (Corporate income tax paid) / Corporate income tax receipts | C18: -44.3 | D18: -7.9 | E18: 25.1 | F18: -5.8 | G18: -5.5 | H18: -5.3 | I18: -16.7 | J18: -3.5 | K18: -4 | L18: -6.4 | M18: -10.9 | N18: -7.7 | O18: -7.8 | P18: -6.6 | Q18: -6.1 | R18: -1.5 | S18: -6.7 | T18: =[3]CF!$D$23 -> -6.4 | U18: =[4]CF!$D23-T18 -> -9.8 | V18: =[5]CF!$D$23-U18-T18 -> -6.6 | W18: =[6]CF!$D$23-T18-U18-V18 -> -6.6 | X18: =[7]CF!$D$23 -> -6.8 | Y18: =[8]CF!$D$23-X18 -> -7.1 | Z18: =[9]CF!D23-Y18-X18 -> -7 | AA18: =[10]CF!$D$23-X18-Y18-Z18 -> -7.6
A19: Środki pieniężne netto z działalności operacyjnej | B19: Net cash provided by (used in) operating activities | C19: =SUM(C17:C18) -> 67.1 | D19: =SUM(D17:D18) -> 12.3 | E19: 120.3 | F19: 58.4 | G19: 108.1 | H19: =SUM(H17:H18) -> 32.2 | I19: =SUM(I17:I18) -> -6.6 | J19: 70 | K19: 85.2 | L19: 30.2 | M19: 29.5 | N19: 31 | O19: 86.6 | P19: 36.9 | Q19: 48.7 | R19: 52.511 | S19: 62.9 | T19: =SUM(T17:T18) -> 73.8 | U19: 15.1 | V19: =SUM(V17:V18) -> 25.8 | W19: 79.6 | X19: =SUM(X17:X18) -> -1.9 | Y19: 51.2 | Z19: =SUM(Z17:Z18) -> 98.9 | AA19: 130.2
A21: Przepływy środków pieniężnych z działalności inwestycyjnej | B21: Cash flows – investing activities
A22: Wpływy ze sprzedaży AT i WN [1] | B22: Disposal of tangible FA and IA [1] | C22: 10.9 | D22: 0.4 | E22: 0.3 | F22: 0.7 | G22: 1.1 | H22: 3 | I22: 1.1 | J22: 4.4 | K22: 1.1 | L22: 0.7 | M22: 0.3 | N22: 0.4 | O22: 0.6 | P22: 7.7 | Q22: 1.7 | R22: 0.9 | S22: 7.8 | T22: =[3]CF!$D$27 -> 1.5 | U22: =[4]CF!$D27-T22 -> 1.1 | V22: =[5]CF!$D$27-U22-T22 -> 0.6 | W22: =[6]CF!$D$27-T22-U22-V22 -> 7.4 | X22: =[7]CF!$D$27 -> 1.8 | Y22: =[8]CF!$D$27-X22 -> 2.1 | Z22: =[9]CF!D27-Y22-X22 -> 1.3 | AA22: =[10]CF!$D$27-X22-Y22-Z22 -> 0.5
A23: Nabycie AT i WN [1] | B23: Acquisition of tangible FA and IA [1] | C23: -15.2 | D23: -6.3 | E23: -4.6 | F23: -10.6 | G23: -5.6 | H23: -11.1 | I23: -6.7 | J23: -15.4 | K23: -13 | L23: -11.1 | M23: -13.8 | N23: -18.6 | O23: -13.8 | P23: -8.9 | Q23: -5.6 | R23: -8.1 | S23: -12 | T23: =[3]CF!$D$34 -> -17.7 | U23: =[4]CF!$D34-T23 -> -4.9 | V23: =[5]CF!$D$34-U23-T23 -> -7.4 | W23: =[6]CF!$D$34-T23-U23-V23 -> -12.6 | X23: =[7]CF!$D$34 -> -12.1 | Y23: =[8]CF!$D$34-X23 -> -7.7 | Z23: =[9]CF!$D$34-X23-Y23 -> -5.5 | AA23: =[10]CF!$D$34-X23-Y23-Z23 -> -7.2
A24: Wydatki z tytułu prowadzonych projektów rozwojowych | B24: Expenditures for development projects in progress | C24: -10 | D24: -2.4 | E24: -2.8 | F24: -3.3 | G24: -4.1 | H24: -8.1 | I24: -5.4 | J24: -6.1 | K24: -6 | L24: -4.9 | M24: -4.9 | N24: -3.4 | O24: -6.5 | P24: -5 | Q24: -4.4 | R24: -4.4 | S24: -3.3 | T24: =[3]CF!$D$35 -> -6.5 | U24: =[4]CF!$D35-T24 -> -5.7 | V24: =[5]CF!$D$35-U24-T24 -> -6.9 | W24: =[6]CF!$D$35-T24-U24-V24 -> -7.1 | X24: =[7]CF!$D$35 -> -6.4 | Y24: =[8]CF!$D$35-X24 -> -5.4 | Z24: =[9]CF!$D$35-X24-Y24 -> -1.7 | AA24: =[10]CF!$D$35-X24-Y24-Z24 -> -0.1
A25: Wpływy ze sprzedaży/liwidacji inwestycji w jednostkach powiązanych | B25: Disposal of shares in related companies | C25: 340.3 | D25: 3.7 | E25: 4.6 | F25: 1.5 | G25: 2.3 | H25: 0.4 | I25: 4.3 | J25: 2.6 | K25: 3.5 | L25: 0.5 | M25: 24.5 | N25: 4.1 | O25: 0 | P25: 1.3 | Q25: 3.6 | R25: 5.7 | S25: 0.1 | T25: =[3]CF!$D$28 -> 0 | U25: =[4]CF!$D28-T25 -> 4.3 | V25: =[5]CF!$D$28-U25-T25 -> 27.4 | W25: =[6]CF!$D$28-T25-U25-V25 -> -4.5 | X25: =[7]CF!$D$28 -> 1.1 | Y25: =[8]CF!$D$28-X25 -> 2.9 | Z25: =[9]CF!$D$28-X25-Y25 -> 5.9 | AA25: =[10]CF!$D$28-X25-Y25-Z25 -> 1.7
A26: Nabycie akcji/udziałów w jednostkach powiązanych | B26: Acquisition of shares in related companies | C26: -10.4 | D26: -15.3 | E26: -0.3 | F26: -2.4 | G26: -13.4 | H26: -0.3 | I26: -2.6 | J26: -0.7 | K26: 0 | L26: -7.7 | M26: -1.6 | N26: -1.1 | O26: 0.1 | P26: -0.8 | Q26: -8.6 | R26: -1.9 | S26: -13.2 | T26: =[3]CF!$D$36 -> -0.5 | U26: =[4]CF!$D36-T26 -> -0.1 | V26: =[5]CF!$D$36-U26-T26 -> 0.1 | W26: =[6]CF!$D$36-T26-U26-V26 -> -7.8 | X26: =[7]CF!$D$36 -> -12 | Y26: =[8]CF!$D$36-X26 -> -0.1 | Z26: =[9]CF!$D$36-X26-Y26 -> 0 | AA26: =[10]CF!$D$36-X26-Y26-Z26 -> -1.8
A27: Nabycie aktywów finansowych | B27: Acquisition of financial assets | C27: 0 | D27: 0 | E27: 0 | F27: 0 | G27: 0 | H27: 0 | I27: 0 | J27: 0 | K27: 0 | L27: 0 | M27: 0 | N27: 0 | U27: =[4]CF!$D32-T27 -> 0 | V27: =[4]CF!$D32-U27 -> 0 | W27: =[4]CF!$D32-V27 -> 0 | X27: =[4]CF!$D32-W27 -> 0 | Y27: =[4]CF!$D32-X27 -> 0 | Z27: =[4]CF!$D32-Y27 -> 0 | AA27: =[4]CF!$D32-Z27 -> 0
A28: Wynik ze sprzedaży aktywów finansowych P&L [2] | B28: Disposal of financial assets P&L [2] | C28: 3 | D28: 1.1 | E28: -1.1 | F28: 1.1 | G28: 0.3 | H28: 0 | I28: 0 | J28: 0 | K28: 0 | L28: 0 | M28: 0 | N28: 0 | O28: 0 | P28: 0 | Q28: 0 | R28: 0 | S28: 0 | T28: 0 | U28: 0 | V28: 0 | W28: 0 | X28: 0 | Y28: 0 | Z28: 0 | AA28: 0
A29: Pożyczki spłacone | B29: Loans collected | C29: 9.3 | D29: 7.7 | E29: 1.8 | F29: 1.9 | G29: 4.4 | H29: 0.4 | I29: 0.5 | J29: 0.9 | K29: 4.7 | L29: 2 | M29: 0.4 | N29: 0.4 | O29: 0.4 | P29: 0.4 | Q29: 7.6 | R29: 0.5 | S29: 1.5 | T29: =[3]CF!$D$29 -> 2.4 | U29: =[4]CF!$D29-T29 -> 5.7 | V29: =[5]CF!$D$29-U29-T29 -> 4.2 | W29: =[6]CF!$D$29-T29-U29-V29 -> 7.9 | X29: =[7]CF!$D$29 -> 0.4 | Y29: =[8]CF!$D$29-X29 -> 0.4 | Z29: =[9]CF!$D$29-X29-Y29 -> 0.5 | AA29: =[10]CF!$D$29-X29-Y29-Z29 -> 0.4
A30: Pożyczki udzielone | B30: Loans granted | C30: -3.8 | D30: -2.8 | E30: -0.9 | F30: -0.3 | G30: -0.4 | H30: -1.9 | I30: -0.7 | J30: -0.8 | K30: -0.4 | L30: -0.6 | M30: -0.4 | N30: -0.3 | O30: -0.2 | P30: -0.3 | Q30: -0.2 | R30: -0.6 | S30: -1.9 | T30: =[3]CF!$D$38 -> -0.3 | U30: =[4]CF!$D38-T30 -> -0.9 | V30: =[5]CF!$D$38-U30-T30 -> -3.3 | W30: =[6]CF!$D$38-T30-U30-V30 -> -0.4 | X30: =[7]CF!$D$38 -> -1.7 | Y30: =[8]CF!$D$38-X30 -> -0.7 | Z30: =[9]CF!$D$38-X30-Y30 -> -0.6 | AA30: =[10]CF!$D$38-X30-Y30-Z30 -> -0.5
A31: Otrzymane odsetki | B31: Interest received | C31: 4.6 | D31: 1.8 | E31: 1.3 | F31: 1.1 | G31: 1.3 | H31: 1.2 | I31: 1.5 | J31: 0.2 | K31: 0.5 | L31: 0.8 | M31: 0.4 | N31: 0 | O31: 0.1 | P31: 0.1 | Q31: 0.3 | R31: 0.1 | S31: 0.3 | T31: =[3]CF!$D$31 -> 1 | U31: =[4]CF!$D31-T31 -> 3.2 | V31: =[5]CF!$D$31-U31-T31 -> -3.2 | W31: =[6]CF!$D$31-T31-U31-V31 -> 0.4 | X31: =[7]CF!$D$31 -> 0.2 | Y31: =[8]CF!$D$31-X31 -> 0.1 | Z31: =[9]CF!$D$31-X31-Y31 -> 0.2 | AA31: =[10]CF!$D$31-X31-Y31-Z31 -> 0.3
A32: Dywidendy otrzymane | B32: Dividends received | C32: 156.2 | D32: 0.9 | E32: 9.3 | F32: 0.7 | G32: 5.4 | H32: 4.7 | I32: 88.8 | J32: 10.3 | K32: 8.4 | L32: 6.5 | M32: 122.1 | N32: 10.4 | O32: 2.6 | P32: 60.1 | Q32: 97.9 | R32: 3.7 | S32: 12.5 | T32: =[3]CF!$D$30 -> 105.3 | U32: =[4]CF!$D30-T32 -> 48 | V32: =[5]CF!$D$30-U32-T32 -> 3.2 | W32: =[6]CF!$D$30-T32-U32-V32 -> 35.7 | X32: =[7]CF!$D$30 -> 119.5 | Y32: =[8]CF!$D$30-X32 -> 23.8 | Z32: =[9]CF!$D$30-X32-Y32 -> 24.3 | AA32: =[10]CF!$D$30-X32-Y32-Z32 -> 47.7
A33: Pozostałe przepływy | B33: Other inflows / outflows | C33: 0 | D33: 0 | E33: 1.1 | F33: -1.1 | G33: -0.2 | H33: -0.1 | I33: 0.1 | J33: 0 | K33: 0 | L33: 0 | M33: 0 | N33: 0 | O33: 0 | P33: 0 | Q33: 0 | R33: 0 | S33: 0 | T33: 0 | U33: 0 | V33: =[5]CF!$D$32-U33-T33 -> 2 | W33: =[6]CF!$D$32-T33-U33-V33 -> 0 | X33: =[7]CF!$D$32 -> 0 | Y33: =[8]CF!$D$32-X33 -> 0 | Z33: =[9]CF!$D$32-X33-Y33 -> 88.9 | AA33: =[10]CF!$D$32-X33-Y33-Z33 -> 0
A34: Środki pieniężne netto wykorzystane w działalności inwestycyjnej | B34: Net cash provided by (used in) investing activities | C34: =SUM(C22:C33) -> 484.9 | D34: =SUM(D22:D33) -> -11.2 | E34: =SUM(E22:E33) -> 8.7 | F34: =SUM(F22:F33) -> -10.7 | G34: -8.9 | H34: -11.8 | I34: 80.9 | J34: -4.6 | K34: -1.2 | L34: =SUM(L22:L33) -> -13.8 | M34: 127 | N34: -8.1 | O34: -16.7 | P34: 54.6 | Q34: 92.3 | R34: -4.1 | S34: -8.2 | T34: =SUM(T22:T33) -> 85.2 | U34: 50.7 | V34: =SUM(V22:V33) -> 16.7 | W34: 19 | X34: =SUM(X22:X33) -> 90.8 | Y34: 15.4 | Z34: =SUM(Z22:Z33) -> 113.3 | AA34: 41
A36: Przepływy środków pieniężnych z działalności finansowej | B36: Cash flows – financing activities
A37: Wypłacona dywidenda | B37: Dividend paid out | C37: -249.8 | D37: 0 | E37: -249.8 | F37: 0 | G37: 0 | H37: 0 | I37: -254.8 | J37: 0 | K37: 0 | L37: 0 | M37: -249.8 | N37: 0 | O37: 0 | P37: 0 | Q37: -258.1 | R37: 0 | S37: 0 | T37: =[3]CF!$D$46 -> 0 | U37: =[4]CF!$D46-T42 -> -278.9 | V37: =[5]CF!$D$46-U37-T37 -> 0 | W37: =[6]CF!$D$46-T37-U37-V37 -> 0 | X37: =[7]CF!$D$46 -> 0 | Y37: =[8]CF!$D$46-X37 -> -290.5 | Z37: =[9]CF!$D$47-X37-Y37 -> 0 | AA37: =[10]CF!$D$47-X37-Y37-Z37 -> 0
A38: Nabycie akcji własnych | B38: Purchase of treasury shares | C38: 0 | D38: 0 | E38: 0 | F38: 0 | G38: 0 | H38: 0 | I38: 0 | J38: 0 | K38: 0 | L38: 0 | M38: 0 | N38: 0 | O38: 0 | P38: 0 | Q38: 0 | R38: 0 | S38: 0 | T38: 0 | U38: 0 | V38: 0 | W38: 0 | X38: 0 | Y38: 0 | Z38: =[9]CF!$D$46-X38-Y38 -> -1186.2 | AA38: =[10]CF!$D$46-Z38 -> 0
A39: Wpływy z tytułu zaciągnięcia kredytów | B39: Proceeds from bank loans | C39: 19.5 | D39: 0 | E39: 0 | F39: 0 | G39: 0 | H39: 0 | I39: 0 | J39: 0 | K39: 0 | L39: 0 | M39: 0 | N39: 0 | O39: 0 | P39: 0 | Q39: 0 | R39: 0 | S39: 0 | T39: =[3]CF!$D$43 -> 0 | U39: =[4]CF!$D$43-T39 -> 0 | V39: =[5]CF!$D$43-U39-T39 -> 0 | W39: =[6]CF!$D$43-T39-U39-V39 -> 0 | X39: =[7]CF!$D$43 -> 0 | Y39: =[8]CF!$D$43-X39 -> 0 | Z39: =[9]CF!$D$43-X39-Y39 -> 944.6 | AA39: =[10]CF!$D$43-Z39 -> 0
A40: Wydatki z tytułu spłaty kredytów | B40: Repayment of bank loans and borrowings | C40: -15 | D40: -3.7 | E40: -23.3 | F40: -3.8 | G40: -3.8 | H40: -28 | I40: -24.7 | J40: -0.6 | K40: -0.5 | L40: 0 | M40: 0 | N40: -0.3 | O40: 0 | P40: 0 | Q40: 0 | R40: 0 | S40: 0 | T40: =[3]CF!$D$47 -> 0 | U40: =[4]CF!$D$47-T40 -> 0 | V40: =[5]CF!$D$48-U40-T40 -> 0 | W40: =[6]CF!$D$47-T40-U40-V40 -> 0 | X40: =[7]CF!$D$47 -> 0 | Y40: =[8]CF!$D$47-X40 -> 0 | Z40: =[9]CF!$D$48-X40-Y40 -> 0 | AA40: =[10]CF!$D$48 -> -23.7
A41: Dotacje otrzymane do zakupu środków trwałych lub/i projektów rozwojowych | B41: Subsidies received | C41: 9.9 | D41: 0 | E41: 0 | F41: 0 | G41: 1 | H41: 0 | I41: 2.3 | J41: 2.8 | K41: 0 | L41: 3.4 | M41: 2.2 | N41: 1.1 | O41: 4.4 | P41: 2.8 | Q41: 0 | R41: 0.7 | S41: 0 | T41: =[3]CF!$D$44 -> 0 | U41: =[4]CF!$D$44-T41 -> 0 | V41: =[5]CF!$D$44-U41-T41 -> 0 | W41: =[6]CF!$D$44-T41-U41-V41 -> 0 | X41: =[7]CF!$D$44 -> 0 | Y41: =[8]CF!$D$44-X41 -> 0 | Z41: =[9]CF!$D$44-X41-Y41 -> 0 | AA41: =[9]CF!$D$44-Y41-Z41 -> 0
A42: Dotacje zwrócone | B42: Subsidies returned | C42: 0 | D42: 0 | E42: 0 | F42: 0 | G42: -9.5 | H42: 0 | I42: 0 | J42: 0 | K42: 0 | L42: 0 | M42: 0 | N42: 0 | O42: 0 | P42: 0 | Q42: 0 | R42: 0 | S42: 0 | T42: 0 | U42: 0 | V42: =[5]CF!$D$52-U42-T42 -> 0 | W42: =0 -> 0 | X42: =0 -> 0 | Y42: =0 -> 0 | Z42: =0 -> 0 | AA42: =0 -> 0
A43: Spłata zobowiązań z tytułu leasingu | B43: Lease liabilities paid | C43: -21.6 | D43: -5.3 | E43: -5.4 | F43: -5.5 | G43: -5.7 | H43: -7.8 | I43: -8.4 | J43: -6.9 | K43: -8.7 | L43: -8.2 | M43: -8.4 | N43: -8.3 | O43: -4.3 | P43: -2.2 | Q43: -2.2 | R43: -2.2 | S43: -2.2 | T43: =[3]CF!$D$51 -> -2.6 | U43: =[4]CF!$D51-T43 -> -2.7 | V43: =[5]CF!$D$51-U43-T43 -> -2.8 | W43: =[6]CF!$D$51-T43-U43-V43 -> -3.1 | X43: =[7]CF!$D$51 -> -3.4 | Y43: =[8]CF!$D$51-X43 -> -3.4 | Z43: =[9]CF!$D$52-X43-Y43 -> -3.3 | AA43: =[10]CF!$D$52-X43-Y43-Z43 -> -3.4
A44: Zapłacone odsetki | B44: Interest paid | C44: -6.6 | D44: -1.7 | E44: -1.4 | F44: -1.4 | G44: -1.1 | H44: -1.6 | I44: -1.3 | J44: -1.1 | K44: -0.9 | L44: -0.8 | M44: -0.8 | N44: -0.7 | O44: 0.8 | P44: -2.1 | Q44: -0.6 | R44: -0.6 | S44: -0.5 | T44: =[3]CF!$D$53 -> -0.6 | U44: =[4]CF!$D53-T44 -> -0.6 | V44: =[5]CF!$D$53-U44-T44 -> -0.6 | W44: =[6]CF!$D$53-T44-U44-V44 -> -0.7 | X44: =[7]CF!$D$53 -> -0.7 | Y44: =[8]CF!$D$53-X44 -> -0.6 | Z44: =[9]CF!$D$54-X44-Y44 -> -0.6 | AA44: =[10]CF!$D$54-X44-Y44-Z44 -> -13.3
A45: Środki pieniężne netto z działalności finansowej | B45: Net cash provided by (used in) financing activities | C45: =SUM(C37:C44) -> -263.6 | D45: =SUM(D37:D44) -> -10.7 | E45: -279.9 | F45: -10.7 | G45: -19.1 | H45: -37.4 | I45: -286.9 | J45: -5.8 | K45: -10.1 | L45: =SUM(L37:L44) -> -5.6 | M45: -256.8 | N45: -8.2 | O45: 0.9 | P45: -1.5 | Q45: -260.9 | R45: -2.1 | S45: -2.7 | T45: =SUM(T37:T44) -> -3.2 | U45: -282.2 | V45: =SUM(V37:V44) -> -3.4 | W45: -3.8 | X45: =SUM(X37:X44) -> -4.1 | Y45: -294.5 | Z45: =SUM(Z37:Z44) -> -245.5 | AA45: -40.4
A46: Zmiana netto stanu środków pieniężnych i ich ekwiwalentów | B46: Net change in cash and cash equivalents | C46: =C19+C34+C45 -> 288.4 | D46: =D19+D34+D45 -> -9.6 | E46: =E19+E34+E45 -> -150.9 | F46: 37 | G46: 80.1 | H46: =H19+H34+H45 -> -17 | I46: =I19+I34+I45 -> -212.6 | J46: 59.6 | K46: 73.9 | L46: =L19+L34+L45 -> 10.8 | M46: -100.3 | N46: 14.7 | O46: 70.8 | P46: 90 | Q46: -119.9 | R46: 46.311 | S46: 52 | T46: =T19+T34+T45 -> 155.8 | U46: -216.4 | V46: =V19+V34+V45 -> 39.1 | W46: 94.8 | X46: =X19+X34+X45 -> 84.8 | Y46: -227.9 | Z46: =Z19+Z34+Z45 -> -33.3 | AA46: 130.8
A47: Różnice kursowe netto | B47: Net foreign exchange differences | C47: -0.3 | D47: 0 | E47: 0.3 | F47: -0.3 | G47: 0.1 | H47: 0.1 | I47: -0.1 | J47: 0.2 | K47: -0.1 | L47: 0.2 | M47: 0 | N47: -0.1 | O47: 0 | P47: 0.1 | Q47: -0.1 | R47: 0 | S47: -0.1 | T47: =[3]CF!$D$57 -> 0.1 | U47: =[4]CF!$D57-T47 -> 0.2 | V47: =[5]CF!$D$57-U47-T47 -> 0.3 | W47: =[6]CF!$D$57-T47-U47-V47 -> -0.6 | X47: =[7]CF!$D$57 -> 0 | Y47: =[8]CF!$D$57-X47 -> -0.5 | Z47: =[9]CF!$D$58-X47-Y47 -> 0.5 | AA47: =[10]CF!$D$58-X47-Y47-Z47 -> -0.1
A48: Środki pieniężne i ich ekwiwalenty na początek danego okresu | B48: Cash and cash equivalents at the beginning of the period | C48: 19.9 | D48: 308 | E48: 298.4 | F48: 147.8 | G48: 184.5 | H48: 264.7 | I48: 247.8 | J48: 35.1 | K48: 94.9 | L48: 168.7 | M48: 179.7 | N48: 79.4 | O48: 94 | P48: 164.8 | Q48: =P49 -> 254.9 | R48: =Q49 -> 134.9 | S48: 181.2 | T48: =[3]CF!$D$58 -> 233.1 | U48: =T49 -> 389 | V48: =U49 -> 172.8 | W48: =V49 -> 212.2 | X48: =[7]CF!$D$58 -> 306.4 | Y48: =X49 -> 391.2 | Z48: =Y49 -> 162.8 | AA48: =Z49 -> 130
A49: Środki pieniężne i ich ekwiwalenty na koniec danego okresu | B49: Cash and cash equivalents at the end of the period | C49: 308 | D49: 298.4 | E49: 147.8 | F49: 184.5 | G49: 264.7 | H49: 247.8 | I49: 35.1 | J49: 94.9 | K49: 168.7 | L49: 179.7 | M49: 79.4 | N49: 94 | O49: 164.8 | P49: 254.9 | Q49: 134.9 | R49: =SUM(R46:R48) -> 181.211 | S49: 233.1 | T49: 389 | U49: 172.8 | V49: 212.2 | W49: 306.4 | X49: =SUM(X46:X48) -> 391.2 | Y49: 162.8 | Z49: =SUM(Z46:Z48) -> 130 | AA49: 260.7
C50: =C48+C47+C46-C49 -> 0 | D50: =D48+D47+D46-D49 -> 0 | E50: =E48+E47+E46-E49 -> 0 | F50: =F48+F47+F46-F49 -> 0 | G50: 0 | H50: =H48+H47+H46-H49 -> 0 | I50: =I48+I47+I46-I49 -> 0 | J50: =J48+J47+J46-J49 -> 0 | K50: 0 | L50: =L48+L47+L46-L49 -> 0 | M50: 0 | N50: 0 | O50: 0 | P50: 0 | Q50: 0 | R50: 0 | S50: 0 | T50: =T48+T47+T46-T49 -> 0 | U50: 0 | V50: =V48+V47+V46-V49 -> 0 | W50: 0 | X50: =X48+X47+X46-X49 -> 0 | Y50: 0 | Z50: =Z48+Z47+Z46-Z49 -> 0 | AA50: 0
A53: Objaśnienia: | B53: Legend:
A54: [1] AT i WN - aktywów trwałych i wartości niematerialnych | B54: [1] FA and IA - fixed assets and intangible assets
A55: [2] Wpływy / wydatki ze sprzedaży aktywów finansowych wycenianych do wartości godziwej przez rachunek zysków i strat | B55: [2] Disposal / Purchase of financial assets carried at fair value through profit or loss

Sheet CF (LTM)
A1: RACHUNEK PRZEPŁYWÓW PIENIĘŻNYCH ASSECO POLAND S.A. | B1: STATEMENT OF CASH FLOWS OF ASSECO POLAND S.A. | C1: Last 12 months
C2: mln PLN
A4: Przepływy środków pieniężnych z działalności operacyjnej | B4: Cash flows – operating activities
A5: Zysk brutto | B5: Pre-tax profit | C5: =SUM(CF!X5:AA5) -> 391
A6: Korekty o pozycje: | B6: Total adjustments: | C6: =SUM(C7:C16) -> -84.1
A7: Amortyzacja | B7: Depreciation and amortization | C7: =SUM(CF!X7:AA7) -> 60.4
A8: Zmiany stanu kapitału pracującego | B8: Changes in working capital | C8: =SUM(CF!X8:AA8) -> 42
A9: Przychody/koszty z tytułu odsetek | B9: Interest income/expenses | C9: =SUM(CF!X9:AA9) -> 19.5
A10: Zyski/straty z tytułu różnic kursowych | B10: Gain / loss on foreign exchange differences | C10: =SUM(CF!X10:AA10) -> -1.5
A11: Przychody z tytułu dywidend | B11: Dividend income | C11: =SUM(CF!X11:AA11) -> -215.8
A12: Strata ze sprzedaży akcji/udziałów w jednostkach powiązanych | B12: Gain / loss on sales of share in subsidiaries | C12: =SUM(CF!X12:AA12) -> 0
A13: Pozostałe przychody/koszty finansowe | B13: Other financial (income)/ costs | C13: =SUM(CF!X13:AA13) -> 9
A14: Odpis aktualizujący wartości niematerialne | B14: Intangible assets impairment | C14: =SUM(CF!X14:AA14) -> 0
A15: Zyski/straty z działalności inwestycyjnej | B15: Gain / loss on investing activities | C15: =SUM(CF!X15:AA15) -> 2.3
A16: Pozostałe korekty zysku brutto | B16: Other pre-tax profit adjustments | C16: =SUM(CF!X16:AA16) -> 0
A17: Środki pieniężne netto wygenerowane z dział. operacyjnej | B17: Cash generated from operating activities | C17: =SUM(C5:C6) -> 306.9
A18: (Zapłacony podatek dochodowy) / Otrzymane zwroty podatku dochodowego | B18: (Corporate income tax paid) / Corporate income tax receipts | C18: =SUM(CF!X18:AA18) -> -28.5
A19: Środki pieniężne netto z działalności operacyjnej | B19: Net cash provided by (used in) operating activities | C19: =SUM(C17:C18) -> 278.4
A21: Przepływy środków pieniężnych z działalności inwestycyjnej | B21: Cash flows – investing activities
A22: Wpływy ze sprzedaży AT i WN [1] | B22: Disposal of tangible FA and IA [1] | C22: =SUM(CF!X22:AA22) -> 5.7
A23: Nabycie AT i WN [1] | B23: Acquisition of tangible FA and IA [1] | C23: =SUM(CF!X23:AA23) -> -32.5
A24: Wydatki z tytułu prowadzonych projektów rozwojowych | B24: Expenditures for development projects in progress | C24: =SUM(CF!X24:AA24) -> -13.6
A25: Wpływy ze sprzedaży/liwidacji inwestycji w jednostkach powiązanych | B25: Disposal of shares in related companies | C25: =SUM(CF!X25:AA25) -> 11.6
A26: Nabycie akcji/udziałów w jednostkach powiązanych | B26: Acquisition of shares in related companies | C26: =SUM(CF!X26:AA26) -> -13.9
A27: Nabycie aktywów finansowych | B27: Acquisition of financial assets | C27: =SUM(CF!X27:AA27) -> 0
A28: Wpływy ze sprzedaży aktywów finansowych P&L [2] | B28: Disposal of financial assets P&L [2] | C28: =SUM(CF!X28:AA28) -> 0
A29: Pożyczki spłacone | B29: Loans collected | C29: =SUM(CF!X29:AA29) -> 1.7
A30: Pożyczki udzielone | B30: Loans granted | C30: =SUM(CF!X30:AA30) -> -3.5
A31: Otrzymane odsetki | B31: Interest received | C31: =SUM(CF!X31:AA31) -> 0.8
A32: Dywidendy otrzymane | B32: Dividends received | C32: =SUM(CF!X32:AA32) -> 215.3
A33: Pozostałe przepływy | B33: Other inflows / outflows | C33: =SUM(CF!X33:AA33) -> 88.9
A34: Środki pieniężne netto wykorzystane w działalności inwestycyjnej | B34: Net cash provided by (used in) investing activities | C34: =SUM(C22:C33) -> 260.5
A36: Przepływy środków pieniężnych z działalności finansowej | B36: Cash flows – financing activities
A37: Wypłacona dywidenda | B37: Dividend paid out | C37: =SUM(CF!X37:AA37) -> -290.5
A38: Nabycie akcji własnych | B38: Purchase of treasury shares | C38: =SUM(CF!X38:AA38) -> -1186.2
A39: Wpływy z tytułu zaciągnięcia kredytów | B39: Proceeds from bank loans | C39: =SUM(CF!X39:AA39) -> 944.6
A40: Wydatki z tytułu spłaty kredytów | B40: Repayment of bank loans and borrowings | C40: =SUM(CF!X40:AA40) -> -23.7
A41: Dotacje otrzymane do zakupu środków trwałych lub/i projektów rozwojowych | B41: Subsidies received | C41: =SUM(CF!X41:AA41) -> 0
A42: Dotacje zwrócone | B42: Subsidies returned | C42: =SUM(CF!X42:AA42) -> 0
A43: Spłata zobowiązań z tytułu leasingu | B43: Lease liabilities paid | C43: =SUM(CF!X43:AA43) -> -13.5
A44: Zapłacone odsetki | B44: Interest paid | C44: =SUM(CF!X44:AA44) -> -15.2
A45: Środki pieniężne netto z działalności finansowej | B45: Net cash provided by (used in) financing activities | C45: =SUM(C37:C44) -> -584.5
A46: Zmiana netto stanu środków pieniężnych i ich ekwiwalentów | B46: Net change in cash and cash equivalents | C46: =C19+C34+C45 -> -45.6
A47: Różnice kursowe netto | B47: Net foreign exchange differences | C47: =SUM(CF!X47:AA47) -> -0.1
A48: Środki pieniężne i ich ekwiwalenty na dzień 1 stycznia 2023 | B48: Cash and cash equivalents at 1 January 2022 | C48: =CF!X48 -> 306.4
A49: Środki pieniężne i ich ekwiwalenty na dzień 31 grudnia 2023 | B49: Cash and cash equivalents at 31 December 2023 | C49: =CF!AA49 -> 260.7
C50: =C48+C47+C46-C49 -> 0
A53: Objaśnienia: | B53: Legend:
A54: [1] AT i WN - aktywów trwałych i wartości niematerialnych | B54: [1] FA and IA - fixed assets and intangible assets
A55: [2] Wpływy / wydatki ze sprzedaży aktywów finansowych wycenianych do wartości godziwej przez rachunek zysków i strat | B55: [2] Disposal / Purchase of financial assets carried at fair value through profit or loss
